Workbook

Sheet Performance Statistics
A1: Model | B1: Slope | C1: Intercept | D1: Initial Average | E1: Ending Average | F1: Change | G1: Highest Tile Achieved | H1: Estimated Time Spent Training | I1: Estimated Average Time per Episode
A2: Model 1 | B2: =SLOPE(TrainingV1[Episode],TrainingV1[Score]) -> 0.392679716 | C2: =INTERCEPT(TrainingV1[Episode],TrainingV1[Score]) -> 861.4987695 | D2: =AVERAGE(IF(TrainingV1[Group]=MIN(TrainingV1[Group]), TrainingV1[Score])) -> 547.7979798 | E2: =AVERAGE(IF(TrainingV1[Group]=MAX(TrainingV1[Group]), TrainingV1[Score])) -> 550.5411765 | F2: =Table6[[#This Row],[Ending Average]]-Table6[[#This Row],[Initial Average]] -> 2.743196673 | G2: =MAX(TrainingV1[Highest Tile]) -> 128 | H2: =TimeStampsV1[[#Totals],[Time Created]] -> 18:41:35 | I2: =Table6[[#This Row],[Estimated Time Spent Training]]/MAX(TimeStampsV2[Episode Number]) -> 00:00:28.636
A3: Model 2 | B3: =SLOPE(TrainingV2[Episode],TrainingV2[Score]) -> 0.2187480156 | C3: =INTERCEPT(TrainingV2[Episode],TrainingV2[Score]) -> 1085.936337 | D3: =AVERAGE(IF(TrainingV2[Group]=MIN(TrainingV2[Group]), TrainingV2[Score])) -> 487.8787879 | E3: =AVERAGE(IF(TrainingV2[Group]=MAX(TrainingV2[Group]), TrainingV2[Score])) -> 505.2658228 | F3: =Table6[[#This Row],[Ending Average]]-Table6[[#This Row],[Initial Average]] -> 17.38703491 | G3: =MAX(TrainingV2[Highest Tile]) -> 256 | H3: =TimeStampsV2[[#Totals],[Time Created]] -> 20:10:20 | I3: =Table6[[#This Row],[Estimated Time Spent Training]]/MAX(TimeStampsV2[Episode Number]) -> 00:00:30.902
A4: Model 3 | B4: =SLOPE(TrainingV3[Episode],TrainingV3[Score]) -> -0.1711968445 | C4: =INTERCEPT(TrainingV3[Episode],TrainingV3[Score]) -> 363.4619605 | D4: =AVERAGE(IF(TrainingV3[Group]=MIN(TrainingV3[Group]), TrainingV3[Score])) -> 596.5252525 | E4: =AVERAGE(IF(TrainingV3[Group]=MAX(TrainingV3[Group]), TrainingV3[Score])) -> 384.9863014 | F4: =Table6[[#This Row],[Ending Average]]-Table6[[#This Row],[Initial Average]] -> -211.5389512 | G4: =MAX(TrainingV3[Highest Tile]) -> 128 | H4: =TimeStampsV3[[#Totals],[Time Created]] -> 00:49:07 | I4: =Table6[[#This Row],[Estimated Time Spent Training]]/MAX(TimeStampsV3[Episode Number]) -> 00:00:05.358
A5: Final Model | B5: =SLOPE(TrainingV4[Episode],TrainingV4[Score]) -> 0.4764643255 | C5: =INTERCEPT(TrainingV4[Episode],TrainingV4[Score]) -> 6750.104462 | D5: =AVERAGE(IF(TrainingV4[Group]=MIN(TrainingV4[Group]), TrainingV4[Score])) -> 562.9494949 | E5: =AVERAGE(IF(TrainingV4[Group]=MAX(TrainingV4[Group]), TrainingV4[Score])) -> 529.1428571 | F5: =Table6[[#This Row],[Ending Average]]-Table6[[#This Row],[Initial Average]] -> -33.80663781 | G5: =MAX(TrainingV4[Highest Tile]) -> 256 | H5: =TimeStampsV4[[#Totals],[Time Created]] -> 1900-01-11T17:10:39 | I5: =Table6[[#This Row],[Estimated Time Spent Training]]/MAX(TimeStampsV4[Episode Number]) -> 00:01:12.562
A7: Group of 100 | B7: Average of Score | C7: Max of Highscore | E7: Select Model
A8: 0 | B8: 547.7979798 | C8: 1724 | E8: Model 1
A9: 100 | B9: 376.68 | C9: 1724
A10: 200 | B10: 289.08 | C10: 1724
A11: 300 | B11: 365.32 | C11: 1724
A12: 400 | B12: 356.08 | C12: 1724
A13: 500 | B13: 365.32 | C13: 1724
A14: 600 | B14: 360.28 | C14: 1724
A15: 700 | B15: 468.36 | C15: 1724
A16: 800 | B16: 504.08 | C16: 1724
A17: 900 | B17: 523.88 | C17: 1884
A18: 1000 | B18: 426.4 | C18: 1884
A19: 1100 | B19: 524.12 | C19: 1884
A20: 1200 | B20: 438.28 | C20: 1884
A21: 1300 | B21: 544.16 | C21: 1884
A22: 1400 | B22: 520.64 | C22: 1884
A23: 1500 | B23: 484.52 | C23: 1884
A24: 1600 | B24: 549.08 | C24: 1884
A25: 1700 | B25: 514.68 | C25: 1884
A26: 1800 | B26: 489.6 | C26: 1884
A27: 1900 | B27: 495.12 | C27: 1884
A28: 2000 | B28: 550.5411765 | C28: 1884
A29: Grand Total | B29: 460.9385797 | C29: 1884

Sheet Intermediate (hidden)
A1: Name | B1: Point 1 | C1: Point 2 | E1: X | F1: Version 1 | G1: Version 2 | H1: Version 3 | I1: Version 4
A2: Version 1 | B2: =(Table6[[#This Row],[Slope]]*$B$7)+Table6[[#This Row],[Intercept]] -> 861.8914492 | C2: =(Table6[[#This Row],[Slope]]*Intermediate!$B$8)+Table6[[#This Row],[Intercept]] -> 862.2841289 | E2: 1 | F2: 861.8914 | G2: 1086.155 | H2: 363.2908 | I2: 6750.581
A3: Version 2 | B3: =Table6[[#This Row],[Slope]]*$B$7+Table6[[#This Row],[Intercept]] -> 1086.155085 | C3: =(Table6[[#This Row],[Slope]]*Intermediate!$B$8)+Table6[[#This Row],[Intercept]] -> 1086.373833 | E3: 2 | F3: 862.2841 | G3: 1086.374 | H3: 363.1196 | I3: 6751.057
A4: Version 3 | B4: =Table6[[#This Row],[Slope]]*$B$7+Table6[[#This Row],[Intercept]] -> 363.2907636 | C4: =(Table6[[#This Row],[Slope]]*Intermediate!$B$8)+Table6[[#This Row],[Intercept]] -> 363.1195668
A5: Final Version | B5: =Table6[[#This Row],[Slope]]*$B$7+Table6[[#This Row],[Intercept]] -> 6750.580926 | C5: =(Table6[[#This Row],[Slope]]*Intermediate!$B$8)+Table6[[#This Row],[Intercept]] -> 6751.057391
A7: x1 | B7: 1
A8: x2 | B8: 2

Sheet Episode Statistics
A1: Final Training Results | W1: Chart Helper Cells
A2: Episode | B2: Score | C2: Highscore | D2: Highest Tile | W2: ="Score for Episode "&TEXT('Episode Statistics'!$A$3, "General") -> Score for Episode 12
A3: 12 | B3: =VLOOKUP($A$3,TrainingV4[],2,FALSE) -> 1692 | C3: =VLOOKUP($A$3,TrainingV4[],3) -> 684 | D3: =VLOOKUP($A$3,TrainingV4[],4) -> 128 | W3: ="Highscore for Episode "&TEXT('Episode Statistics'!$A$3, "General") -> Highscore for Episode 12
W4: ="Highest Tile for Episode "&TEXT('Episode Statistics'!$A$3, "General") -> Highest Tile for Episode 12
A5: First Training Results
A6: Episode | B6: Score | C6: Highscore | D6: Highest Tile
A7: =A3 -> 12 | B7: =IFERROR(VLOOKUP($A$7,TrainingV1[],2,FALSE),"Model") -> 304 | C7: =IFERROR(VLOOKUP($A$7,TrainingV1[],3, FALSE), "not trained") -> 1412 | D7: =IFERROR(VLOOKUP($A$7,TrainingV1[],4, FALSE), "this high") -> 32
A9: Second Training Results
A10: Episode | B10: Score | C10: Highscore | D10: Highest Tile
A11: =A3 -> 12 | B11: =IFERROR(VLOOKUP($A$11,TrainingV2[],2,FALSE),"Model") -> 428 | C11: =IFERROR(VLOOKUP($A$11,TrainingV2[],3, FALSE), "not trained") -> 1092 | D11: =IFERROR(VLOOKUP($A$11,TrainingV2[],4, FALSE), "this high") -> 32
A13: Third Training Results
A14: Episode | B14: Score | C14: Highscore | D14: Highest Tile
A15: =A3 -> 12 | B15: =IFERROR(VLOOKUP($A$15,TrainingV3[],2,FALSE),"Model") -> 784 | C15: =IFERROR(VLOOKUP($A$15,TrainingV3[],3, FALSE), "not trained") -> 1296 | D15: =IFERROR(VLOOKUP($A$15,TrainingV3[],4, FALSE), "this high") -> 64

Sheet Model Statisitics
A1: Layer | B1: Model Version 1 | C1: Model Version 2 | D1: Model Version 3 | E1: Final Model
A2: Input Layer | B2: 16 | C2: 16 | D2: 16 | E2: 16
A3: First Layer | B3: 128 | C3: 64 | D3: 128 | E3: 256
A4: Second Layer | B4: 64 | C4: 64 | D4: 64 | E4: 128
A5: Third Layer | B5: 0 | C5: 0 | D5: 32 | E5: 0
A6: Output Layer | B6: 4 | C6: 4 | D6: 4 | E6: 4

Sheet Final Training Results
A1: Episode | B1: Score | C1: Highscore | D1: Highest Tile | E1: Group
A2: 1 | B2: 288 | C2: 0 | D2: 32 | E2: =INT(A2/100)*100 -> 0
A3: 2 | B3: 684 | C3: 288 | D3: 64 | E3: =INT(A3/100)*100 -> 0
A4: 3 | B4: 372 | C4: 684 | D4: 32 | E4: 0
A5: 4 | B5: 276 | C5: 684 | D5: 32 | E5: 0
A6: 5 | B6: 396 | C6: 684 | D6: 32 | E6: 0
A7: 6 | B7: 544 | C7: 684 | D7: 64 | E7: 0
A8: 7 | B8: 316 | C8: 684 | D8: 32 | E8: 0
A9: 8 | B9: 420 | C9: 684 | D9: 32 | E9: 0
A10: 9 | B10: 336 | C10: 684 | D10: 32 | E10: 0
A11: 10 | B11: 116 | C11: 684 | D11: 16 | E11: 0
A12: 11 | B12: 628 | C12: 684 | D12: 32 | E12: 0
A13: 12 | B13: 1692 | C13: 684 | D13: 128 | E13: 0
A14: 13 | B14: 384 | C14: 1692 | D14: 32 | E14: 0
A15: 14 | B15: 624 | C15: 1692 | D15: 64 | E15: 0
A16: 15 | B16: 352 | C16: 1692 | D16: 32 | E16: 0
A17: 16 | B17: 576 | C17: 1692 | D17: 64 | E17: 0
A18: 17 | B18: 428 | C18: 1692 | D18: 32 | E18: 0
A19: 18 | B19: 788 | C19: 1692 | D19: 64 | E19: 0
A20: 19 | B20: 856 | C20: 1692 | D20: 128 | E20: 0
A21: 20 | B21: 1116 | C21: 1692 | D21: 128 | E21: 0
A22: 21 | B22: 344 | C22: 1692 | D22: 32 | E22: 0
A23: 22 | B23: 288 | C23: 1692 | D23: 32 | E23: 0
A24: 23 | B24: 568 | C24: 1692 | D24: 64 | E24: 0
A25: 24 | B25: 668 | C25: 1692 | D25: 64 | E25: 0
A26: 25 | B26: 868 | C26: 1692 | D26: 64 | E26: 0
A27: 26 | B27: 748 | C27: 1692 | D27: 64 | E27: 0
A28: 27 | B28: 688 | C28: 1692 | D28: 64 | E28: 0
A29: 28 | B29: 496 | C29: 1692 | D29: 32 | E29: 0
A30: 29 | B30: 552 | C30: 1692 | D30: 32 | E30: 0
A31: 30 | B31: 300 | C31: 1692 | D31: 32 | E31: 0
A32: 31 | B32: 784 | C32: 1692 | D32: 64 | E32: 0
A33: 32 | B33: 336 | C33: 1692 | D33: 32 | E33: 0
A34: 33 | B34: 748 | C34: 1692 | D34: 64 | E34: 0
A35: 34 | B35: 1156 | C35: 1692 | D35: 128 | E35: 0
A36: 35 | B36: 692 | C36: 1692 | D36: 64 | E36: 0
A37: 36 | B37: 1056 | C37: 1692 | D37: 64 | E37: 0
A38: 37 | B38: 308 | C38: 1692 | D38: 32 | E38: 0
A39: 38 | B39: 880 | C39: 1692 | D39: 64 | E39: 0
A40: 39 | B40: 508 | C40: 1692 | D40: 64 | E40: 0
A41: 40 | B41: 1416 | C41: 1692 | D41: 128 | E41: 0
A42: 41 | B42: 324 | C42: 1692 | D42: 32 | E42: 0
A43: 42 | B43: 1472 | C43: 1692 | D43: 128 | E43: 0
A44: 43 | B44: 292 | C44: 1692 | D44: 32 | E44: 0
A45: 44 | B45: 240 | C45: 1692 | D45: 16 | E45: 0
A46: 45 | B46: 640 | C46: 1692 | D46: 64 | E46: 0
A47: 46 | B47: 716 | C47: 1692 | D47: 64 | E47: 0
A48: 47 | B48: 960 | C48: 1692 | D48: 64 | E48: 0
A49: 48 | B49: 768 | C49: 1692 | D49: 64 | E49: 0
A50: 49 | B50: 324 | C50: 1692 | D50: 32 | E50: 0
A51: 50 | B51: 1248 | C51: 1692 | D51: 128 | E51: 0
A52: 51 | B52: 624 | C52: 1692 | D52: 64 | E52: 0
A53: 52 | B53: 460 | C53: 1692 | D53: 32 | E53: 0
A54: 53 | B54: 612 | C54: 1692 | D54: 64 | E54: 0
A55: 54 | B55: 448 | C55: 1692 | D55: 32 | E55: 0
A56: 55 | B56: 588 | C56: 1692 | D56: 32 | E56: 0
A57: 56 | B57: 476 | C57: 1692 | D57: 32 | E57: 0
A58: 57 | B58: 524 | C58: 1692 | D58: 32 | E58: 0
A59: 58 | B59: 600 | C59: 1692 | D59: 64 | E59: 0
A60: 59 | B60: 252 | C60: 1692 | D60: 32 | E60: 0
A61: 60 | B61: 416 | C61: 1692 | D61: 32 | E61: 0
A62: 61 | B62: 732 | C62: 1692 | D62: 64 | E62: 0
A63: 62 | B63: 272 | C63: 1692 | D63: 32 | E63: 0
A64: 63 | B64: 796 | C64: 1692 | D64: 64 | E64: 0
A65: 64 | B65: 1420 | C65: 1692 | D65: 128 | E65: 0
A66: 65 | B66: 332 | C66: 1692 | D66: 32 | E66: 0
A67: 66 | B67: 528 | C67: 1692 | D67: 32 | E67: =INT(A67/100)*100 -> 0
A68: 67 | B68: 688 | C68: 1692 | D68: 64 | E68: 0
A69: 68 | B69: 620 | C69: 1692 | D69: 64 | E69: 0
A70: 69 | B70: 348 | C70: 1692 | D70: 32 | E70: 0
A71: 70 | B71: 388 | C71: 1692 | D71: 32 | E71: 0
A72: 71 | B72: 368 | C72: 1692 | D72: 32 | E72: 0
A73: 72 | B73: 680 | C73: 1692 | D73: 64 | E73: 0
A74: 73 | B74: 380 | C74: 1692 | D74: 32 | E74: 0
A75: 74 | B75: 228 | C75: 1692 | D75: 32 | E75: 0
A76: 75 | B76: 292 | C76: 1692 | D76: 32 | E76: 0
A77: 76 | B77: 500 | C77: 1692 | D77: 64 | E77: 0
A78: 77 | B78: 536 | C78: 1692 | D78: 64 | E78: 0
A79: 78 | B79: 528 | C79: 1692 | D79: 64 | E79: 0
A80: 79 | B80: 272 | C80: 1692 | D80: 32 | E80: 0
A81: 80 | B81: 628 | C81: 1692 | D81: 64 | E81: 0
A82: 81 | B82: 292 | C82: 1692 | D82: 32 | E82: 0
A83: 82 | B83: 240 | C83: 1692 | D83: 16 | E83: 0
A84: 83 | B84: 732 | C84: 1692 | D84: 64 | E84: 0
A85: 84 | B85: 912 | C85: 1692 | D85: 64 | E85: 0
A86: 85 | B86: 328 | C86: 1692 | D86: 32 | E86: 0
A87: 86 | B87: 360 | C87: 1692 | D87: 32 | E87: 0
A88: 87 | B88: 460 | C88: 1692 | D88: 32 | E88: 0
A89: 88 | B89: 504 | C89: 1692 | D89: 64 | E89: 0
A90: 89 | B90: 284 | C90: 1692 | D90: 16 | E90: 0
A91: 90 | B91: 596 | C91: 1692 | D91: 64 | E91: 0
A92: 91 | B92: 420 | C92: 1692 | D92: 32 | E92: 0
A93: 92 | B93: 524 | C93: 1692 | D93: 32 | E93: 0
A94: 93 | B94: 292 | C94: 1692 | D94: 32 | E94: 0
A95: 94 | B95: 1056 | C95: 1692 | D95: 128 | E95: 0
A96: 95 | B96: 464 | C96: 1692 | D96: 32 | E96: 0
A97: 96 | B97: 140 | C97: 1692 | D97: 16 | E97: 0
A98: 97 | B98: 224 | C98: 1692 | D98: 16 | E98: 0
A99: 98 | B99: 644 | C99: 1692 | D99: 64 | E99: 0
A100: 99 | B100: 144 | C100: 1692 | D100: 16 | E100: 0
A101: 100 | B101: 320 | C101: 1692 | D101: 32 | E101: 100
A102: 101 | B102: 412 | C102: 1692 | D102: 32 | E102: 100
A103: 102 | B103: 236 | C103: 1692 | D103: 16 | E103: 100
A104: 103 | B104: 180 | C104: 1692 | D104: 16 | E104: 100
A105: 104 | B105: 292 | C105: 1692 | D105: 32 | E105: 100
A106: 105 | B106: 728 | C106: 1692 | D106: 64 | E106: 100
A107: 106 | B107: 292 | C107: 1692 | D107: 32 | E107: 100
A108: 107 | B108: 312 | C108: 1692 | D108: 32 | E108: 100
A109: 108 | B109: 204 | C109: 1692 | D109: 16 | E109: 100
A110: 109 | B110: 348 | C110: 1692 | D110: 32 | E110: 100
A111: 110 | B111: 268 | C111: 1692 | D111: 32 | E111: 100
A112: 111 | B112: 216 | C112: 1692 | D112: 16 | E112: 100
A113: 112 | B113: 268 | C113: 1692 | D113: 32 | E113: 100
A114: 113 | B114: 408 | C114: 1692 | D114: 32 | E114: 100
A115: 114 | B115: 120 | C115: 1692 | D115: 8 | E115: 100
A116: 115 | B116: 548 | C116: 1692 | D116: 64 | E116: 100
A117: 116 | B117: 1420 | C117: 1692 | D117: 128 | E117: 100
A118: 117 | B118: 400 | C118: 1692 | D118: 32 | E118: 100
A119: 118 | B119: 272 | C119: 1692 | D119: 32 | E119: 100
A120: 119 | B120: 752 | C120: 1692 | D120: 64 | E120: 100
A121: 120 | B121: 168 | C121: 1692 | D121: 16 | E121: 100
A122: 121 | B122: 256 | C122: 1692 | D122: 32 | E122: 100
A123: 122 | B123: 180 | C123: 1692 | D123: 16 | E123: 100
A124: 123 | B124: 328 | C124: 1692 | D124: 32 | E124: 100
A125: 124 | B125: 292 | C125: 1692 | D125: 16 | E125: 100
A126: 125 | B126: 228 | C126: 1692 | D126: 16 | E126: 100
A127: 126 | B127: 68 | C127: 1692 | D127: 8 | E127: 100
A128: 127 | B128: 256 | C128: 1692 | D128: 32 | E128: 100
A129: 128 | B129: 184 | C129: 1692 | D129: 16 | E129: 100
A130: 129 | B130: 524 | C130: 1692 | D130: 32 | E130: 100
A131: 130 | B131: 172 | C131: 1692 | D131: 16 | E131: =INT(A131/100)*100 -> 100
A132: 131 | B132: 220 | C132: 1692 | D132: 32 | E132: 100
A133: 132 | B133: 216 | C133: 1692 | D133: 16 | E133: 100
A134: 133 | B134: 224 | C134: 1692 | D134: 16 | E134: 100
A135: 134 | B135: 220 | C135: 1692 | D135: 32 | E135: 100
A136: 135 | B136: 236 | C136: 1692 | D136: 16 | E136: 100
A137: 136 | B137: 144 | C137: 1692 | D137: 16 | E137: 100
A138: 137 | B138: 600 | C138: 1692 | D138: 64 | E138: 100
A139: 138 | B139: 1200 | C139: 1692 | D139: 128 | E139: 100
A140: 139 | B140: 404 | C140: 1692 | D140: 32 | E140: 100
A141: 140 | B141: 492 | C141: 1692 | D141: 32 | E141: 100
A142: 141 | B142: 556 | C142: 1692 | D142: 64 | E142: 100
A143: 142 | B143: 888 | C143: 1692 | D143: 64 | E143: 100
A144: 143 | B144: 952 | C144: 1692 | D144: 64 | E144: 100
A145: 144 | B145: 528 | C145: 1692 | D145: 32 | E145: 100
A146: 145 | B146: 768 | C146: 1692 | D146: 64 | E146: 100
A147: 146 | B147: 536 | C147: 1692 | D147: 32 | E147: 100
A148: 147 | B148: 564 | C148: 1692 | D148: 64 | E148: 100
A149: 148 | B149: 288 | C149: 1692 | D149: 32 | E149: 100
A150: 149 | B150: 168 | C150: 1692 | D150: 16 | E150: 100
A151: 150 | B151: 416 | C151: 1692 | D151: 32 | E151: 100
A152: 151 | B152: 356 | C152: 1692 | D152: 32 | E152: 100
A153: 152 | B153: 296 | C153: 1692 | D153: 32 | E153: 100
A154: 153 | B154: 436 | C154: 1692 | D154: 32 | E154: 100
A155: 154 | B155: 284 | C155: 1692 | D155: 32 | E155: 100
A156: 155 | B156: 320 | C156: 1692 | D156: 32 | E156: 100
A157: 156 | B157: 380 | C157: 1692 | D157: 32 | E157: 100
A158: 157 | B158: 448 | C158: 1692 | D158: 32 | E158: 100
A159: 158 | B159: 316 | C159: 1692 | D159: 32 | E159: 100
A160: 159 | B160: 320 | C160: 1692 | D160: 32 | E160: 100
A161: 160 | B161: 440 | C161: 1692 | D161: 32 | E161: 100
A162: 161 | B162: 672 | C162: 1692 | D162: 64 | E162: 100
A163: 162 | B163: 564 | C163: 1692 | D163: 64 | E163: 100
A164: 163 | B164: 724 | C164: 1692 | D164: 64 | E164: 100
A165: 164 | B165: 236 | C165: 1692 | D165: 16 | E165: 100
A166: 165 | B166: 656 | C166: 1692 | D166: 64 | E166: 100
A167: 166 | B167: 1072 | C167: 1692 | D167: 128 | E167: 100
A168: 167 | B168: 460 | C168: 1692 | D168: 32 | E168: 100
A169: 168 | B169: 376 | C169: 1692 | D169: 32 | E169: 100
A170: 169 | B170: 552 | C170: 1692 | D170: 64 | E170: 100
A171: 170 | B171: 660 | C171: 1692 | D171: 64 | E171: 100
A172: 171 | B172: 372 | C172: 1692 | D172: 32 | E172: 100
A173: 172 | B173: 272 | C173: 1692 | D173: 32 | E173: 100
A174: 173 | B174: 228 | C174: 1692 | D174: 32 | E174: 100
A175: 174 | B175: 156 | C175: 1692 | D175: 16 | E175: 100
A176: 175 | B176: 540 | C176: 1692 | D176: 32 | E176: 100
A177: 176 | B177: 192 | C177: 1692 | D177: 16 | E177: 100
A178: 177 | B178: 416 | C178: 1692 | D178: 32 | E178: 100
A179: 178 | B179: 1388 | C179: 1692 | D179: 128 | E179: 100
A180: 179 | B180: 388 | C180: 1692 | D180: 32 | E180: 100
A181: 180 | B181: 336 | C181: 1692 | D181: 32 | E181: 100
A182: 181 | B182: 1440 | C182: 1692 | D182: 128 | E182: 100
A183: 182 | B183: 1360 | C183: 1692 | D183: 128 | E183: 100
A184: 183 | B184: 1344 | C184: 1692 | D184: 128 | E184: 100
A185: 184 | B185: 208 | C185: 1692 | D185: 32 | E185: 100
A186: 185 | B186: 1096 | C186: 1692 | D186: 64 | E186: 100
A187: 186 | B187: 164 | C187: 1692 | D187: 16 | E187: 100
A188: 187 | B188: 328 | C188: 1692 | D188: 32 | E188: 100
A189: 188 | B189: 1028 | C189: 1692 | D189: 64 | E189: 100
A190: 189 | B190: 492 | C190: 1692 | D190: 32 | E190: 100
A191: 190 | B191: 656 | C191: 1692 | D191: 64 | E191: 100
A192: 191 | B192: 384 | C192: 1692 | D192: 32 | E192: 100
A193: 192 | B193: 404 | C193: 1692 | D193: 32 | E193: 100
A194: 193 | B194: 324 | C194: 1692 | D194: 32 | E194: 100
A195: 194 | B195: 588 | C195: 1692 | D195: 64 | E195: =INT(A195/100)*100 -> 100
A196: 195 | B196: 508 | C196: 1692 | D196: 32 | E196: 100
A197: 196 | B197: 536 | C197: 1692 | D197: 32 | E197: 100
A198: 197 | B198: 296 | C198: 1692 | D198: 32 | E198: 100
A199: 198 | B199: 476 | C199: 1692 | D199: 32 | E199: 100
A200: 199 | B200: 516 | C200: 1692 | D200: 64 | E200: 100
... 13763 more rows

Sheet Training Results V3
A1: Episode | B1: Score | C1: Highscore | D1: Highest Tile | E1: Group
A2: 1 | B2: 644 | C2: 0 | D2: 64 | E2: =INT(A2/100)*100 -> 0
A3: 2 | B3: 464 | C3: 644 | D3: 32 | E3: =INT(A3/100)*100 -> 0
A4: 3 | B4: 240 | C4: 644 | D4: 32 | E4: 0
A5: 4 | B5: 1020 | C5: 644 | D5: 64 | E5: 0
A6: 5 | B6: 332 | C6: 1020 | D6: 32 | E6: 0
A7: 6 | B7: 376 | C7: 1020 | D7: 32 | E7: 0
A8: 7 | B8: 1296 | C8: 1020 | D8: 128 | E8: 0
A9: 8 | B9: 1148 | C9: 1296 | D9: 128 | E9: 0
A10: 9 | B10: 412 | C10: 1296 | D10: 32 | E10: 0
A11: 10 | B11: 872 | C11: 1296 | D11: 64 | E11: 0
A12: 11 | B12: 192 | C12: 1296 | D12: 16 | E12: 0
A13: 12 | B13: 784 | C13: 1296 | D13: 64 | E13: 0
A14: 13 | B14: 636 | C14: 1296 | D14: 64 | E14: 0
A15: 14 | B15: 320 | C15: 1296 | D15: 32 | E15: 0
A16: 15 | B16: 512 | C16: 1296 | D16: 64 | E16: 0
A17: 16 | B17: 432 | C17: 1296 | D17: 32 | E17: 0
A18: 17 | B18: 464 | C18: 1296 | D18: 32 | E18: 0
A19: 18 | B19: 1104 | C19: 1296 | D19: 128 | E19: 0
A20: 19 | B20: 804 | C20: 1296 | D20: 64 | E20: 0
A21: 20 | B21: 584 | C21: 1296 | D21: 32 | E21: 0
A22: 21 | B22: 596 | C22: 1296 | D22: 64 | E22: 0
A23: 22 | B23: 444 | C23: 1296 | D23: 32 | E23: 0
A24: 23 | B24: 1712 | C24: 1296 | D24: 128 | E24: 0
A25: 24 | B25: 644 | C25: 1712 | D25: 64 | E25: 0
A26: 25 | B26: 220 | C26: 1712 | D26: 32 | E26: 0
A27: 26 | B27: 736 | C27: 1712 | D27: 64 | E27: 0
A28: 27 | B28: 224 | C28: 1712 | D28: 16 | E28: 0
A29: 28 | B29: 1676 | C29: 1712 | D29: 128 | E29: 0
A30: 29 | B30: 196 | C30: 1712 | D30: 16 | E30: 0
A31: 30 | B31: 1240 | C31: 1712 | D31: 128 | E31: 0
A32: 31 | B32: 892 | C32: 1712 | D32: 64 | E32: 0
A33: 32 | B33: 704 | C33: 1712 | D33: 64 | E33: 0
A34: 33 | B34: 460 | C34: 1712 | D34: 32 | E34: 0
A35: 34 | B35: 260 | C35: 1712 | D35: 32 | E35: 0
A36: 35 | B36: 272 | C36: 1712 | D36: 32 | E36: 0
A37: 36 | B37: 924 | C37: 1712 | D37: 64 | E37: 0
A38: 37 | B38: 1088 | C38: 1712 | D38: 64 | E38: 0
A39: 38 | B39: 500 | C39: 1712 | D39: 64 | E39: 0
A40: 39 | B40: 1088 | C40: 1712 | D40: 128 | E40: 0
A41: 40 | B41: 424 | C41: 1712 | D41: 32 | E41: 0
A42: 41 | B42: 640 | C42: 1712 | D42: 64 | E42: 0
A43: 42 | B43: 464 | C43: 1712 | D43: 32 | E43: 0
A44: 43 | B44: 592 | C44: 1712 | D44: 64 | E44: 0
A45: 44 | B45: 1328 | C45: 1712 | D45: 128 | E45: 0
A46: 45 | B46: 1728 | C46: 1712 | D46: 128 | E46: 0
A47: 46 | B47: 508 | C47: 1728 | D47: 64 | E47: 0
A48: 47 | B48: 332 | C48: 1728 | D48: 32 | E48: 0
A49: 48 | B49: 580 | C49: 1728 | D49: 64 | E49: 0
A50: 49 | B50: 2108 | C50: 1728 | D50: 128 | E50: 0
A51: 50 | B51: 352 | C51: 2108 | D51: 32 | E51: 0
A52: 51 | B52: 392 | C52: 2108 | D52: 32 | E52: 0
A53: 52 | B53: 784 | C53: 2108 | D53: 64 | E53: 0
A54: 53 | B54: 524 | C54: 2108 | D54: 32 | E54: 0
A55: 54 | B55: 544 | C55: 2108 | D55: 32 | E55: 0
A56: 55 | B56: 452 | C56: 2108 | D56: 32 | E56: 0
A57: 56 | B57: 496 | C57: 2108 | D57: 64 | E57: 0
A58: 57 | B58: 108 | C58: 2108 | D58: 16 | E58: 0
A59: 58 | B59: 92 | C59: 2108 | D59: 8 | E59: 0
A60: 59 | B60: 356 | C60: 2108 | D60: 32 | E60: 0
A61: 60 | B61: 372 | C61: 2108 | D61: 32 | E61: 0
A62: 61 | B62: 748 | C62: 2108 | D62: 64 | E62: 0
A63: 62 | B63: 784 | C63: 2108 | D63: 64 | E63: 0
A64: 63 | B64: 388 | C64: 2108 | D64: 32 | E64: 0
A65: 64 | B65: 592 | C65: 2108 | D65: 32 | E65: 0
A66: 65 | B66: 396 | C66: 2108 | D66: 32 | E66: 0
A67: 66 | B67: 360 | C67: 2108 | D67: 32 | E67: =INT(A67/100)*100 -> 0
A68: 67 | B68: 312 | C68: 2108 | D68: 32 | E68: 0
A69: 68 | B69: 604 | C69: 2108 | D69: 64 | E69: 0
A70: 69 | B70: 304 | C70: 2108 | D70: 32 | E70: 0
A71: 70 | B71: 268 | C71: 2108 | D71: 16 | E71: 0
A72: 71 | B72: 1136 | C72: 2108 | D72: 128 | E72: 0
A73: 72 | B73: 132 | C73: 2108 | D73: 16 | E73: 0
A74: 73 | B74: 732 | C74: 2108 | D74: 64 | E74: 0
A75: 74 | B75: 424 | C75: 2108 | D75: 32 | E75: 0
A76: 75 | B76: 596 | C76: 2108 | D76: 64 | E76: 0
A77: 76 | B77: 1172 | C77: 2108 | D77: 64 | E77: 0
A78: 77 | B78: 432 | C78: 2108 | D78: 64 | E78: 0
A79: 78 | B79: 96 | C79: 2108 | D79: 8 | E79: 0
A80: 79 | B80: 852 | C80: 2108 | D80: 128 | E80: 0
A81: 80 | B81: 336 | C81: 2108 | D81: 32 | E81: 0
A82: 81 | B82: 164 | C82: 2108 | D82: 16 | E82: 0
A83: 82 | B83: 808 | C83: 2108 | D83: 64 | E83: 0
A84: 83 | B84: 332 | C84: 2108 | D84: 32 | E84: 0
A85: 84 | B85: 384 | C85: 2108 | D85: 32 | E85: 0
A86: 85 | B86: 432 | C86: 2108 | D86: 32 | E86: 0
A87: 86 | B87: 684 | C87: 2108 | D87: 64 | E87: 0
A88: 87 | B88: 416 | C88: 2108 | D88: 32 | E88: 0
A89: 88 | B89: 912 | C89: 2108 | D89: 64 | E89: 0
A90: 89 | B90: 496 | C90: 2108 | D90: 32 | E90: 0
A91: 90 | B91: 100 | C91: 2108 | D91: 8 | E91: 0
A92: 91 | B92: 292 | C92: 2108 | D92: 32 | E92: 0
A93: 92 | B93: 584 | C93: 2108 | D93: 64 | E93: 0
A94: 93 | B94: 336 | C94: 2108 | D94: 32 | E94: 0
A95: 94 | B95: 624 | C95: 2108 | D95: 64 | E95: 0
A96: 95 | B96: 320 | C96: 2108 | D96: 32 | E96: 0
A97: 96 | B97: 228 | C97: 2108 | D97: 32 | E97: 0
A98: 97 | B98: 560 | C98: 2108 | D98: 64 | E98: 0
A99: 98 | B99: 620 | C99: 2108 | D99: 64 | E99: 0
A100: 99 | B100: 412 | C100: 2108 | D100: 32 | E100: 0
A101: 100 | B101: 368 | C101: 2108 | D101: 32 | E101: 100
A102: 101 | B102: 208 | C102: 2108 | D102: 32 | E102: 100
A103: 102 | B103: 236 | C103: 2108 | D103: 16 | E103: 100
A104: 103 | B104: 440 | C104: 2108 | D104: 32 | E104: 100
A105: 104 | B105: 124 | C105: 2108 | D105: 16 | E105: 100
A106: 105 | B106: 884 | C106: 2108 | D106: 64 | E106: 100
A107: 106 | B107: 948 | C107: 2108 | D107: 64 | E107: 100
A108: 107 | B108: 644 | C108: 2108 | D108: 64 | E108: 100
A109: 108 | B109: 452 | C109: 2108 | D109: 32 | E109: 100
A110: 109 | B110: 496 | C110: 2108 | D110: 64 | E110: 100
A111: 110 | B111: 284 | C111: 2108 | D111: 16 | E111: 100
A112: 111 | B112: 376 | C112: 2108 | D112: 32 | E112: 100
A113: 112 | B113: 460 | C113: 2108 | D113: 32 | E113: 100
A114: 113 | B114: 176 | C114: 2108 | D114: 16 | E114: 100
A115: 114 | B115: 876 | C115: 2108 | D115: 64 | E115: 100
A116: 115 | B116: 416 | C116: 2108 | D116: 32 | E116: 100
A117: 116 | B117: 584 | C117: 2108 | D117: 32 | E117: 100
A118: 117 | B118: 236 | C118: 2108 | D118: 16 | E118: 100
A119: 118 | B119: 192 | C119: 2108 | D119: 32 | E119: 100
A120: 119 | B120: 84 | C120: 2108 | D120: 8 | E120: 100
A121: 120 | B121: 632 | C121: 2108 | D121: 64 | E121: 100
A122: 121 | B122: 320 | C122: 2108 | D122: 32 | E122: 100
A123: 122 | B123: 648 | C123: 2108 | D123: 64 | E123: 100
A124: 123 | B124: 300 | C124: 2108 | D124: 32 | E124: 100
A125: 124 | B125: 408 | C125: 2108 | D125: 32 | E125: 100
A126: 125 | B126: 656 | C126: 2108 | D126: 64 | E126: 100
A127: 126 | B127: 464 | C127: 2108 | D127: 64 | E127: 100
A128: 127 | B128: 504 | C128: 2108 | D128: 64 | E128: 100
A129: 128 | B129: 236 | C129: 2108 | D129: 16 | E129: 100
A130: 129 | B130: 460 | C130: 2108 | D130: 32 | E130: 100
A131: 130 | B131: 484 | C131: 2108 | D131: 32 | E131: =INT(A131/100)*100 -> 100
A132: 131 | B132: 524 | C132: 2108 | D132: 32 | E132: 100
A133: 132 | B133: 216 | C133: 2108 | D133: 16 | E133: 100
A134: 133 | B134: 380 | C134: 2108 | D134: 32 | E134: 100
A135: 134 | B135: 268 | C135: 2108 | D135: 32 | E135: 100
A136: 135 | B136: 276 | C136: 2108 | D136: 32 | E136: 100
A137: 136 | B137: 120 | C137: 2108 | D137: 16 | E137: 100
A138: 137 | B138: 700 | C138: 2108 | D138: 64 | E138: 100
A139: 138 | B139: 636 | C139: 2108 | D139: 64 | E139: 100
A140: 139 | B140: 396 | C140: 2108 | D140: 32 | E140: 100
A141: 140 | B141: 348 | C141: 2108 | D141: 32 | E141: 100
A142: 141 | B142: 712 | C142: 2108 | D142: 64 | E142: 100
A143: 142 | B143: 352 | C143: 2108 | D143: 32 | E143: 100
A144: 143 | B144: 624 | C144: 2108 | D144: 64 | E144: 100
A145: 144 | B145: 512 | C145: 2108 | D145: 32 | E145: 100
A146: 145 | B146: 1376 | C146: 2108 | D146: 128 | E146: 100
A147: 146 | B147: 284 | C147: 2108 | D147: 32 | E147: 100
A148: 147 | B148: 196 | C148: 2108 | D148: 32 | E148: 100
A149: 148 | B149: 340 | C149: 2108 | D149: 32 | E149: 100
A150: 149 | B150: 844 | C150: 2108 | D150: 64 | E150: 100
A151: 150 | B151: 400 | C151: 2108 | D151: 32 | E151: 100
A152: 151 | B152: 296 | C152: 2108 | D152: 32 | E152: 100
A153: 152 | B153: 672 | C153: 2108 | D153: 64 | E153: 100
A154: 153 | B154: 460 | C154: 2108 | D154: 32 | E154: 100
A155: 154 | B155: 496 | C155: 2108 | D155: 64 | E155: 100
A156: 155 | B156: 304 | C156: 2108 | D156: 32 | E156: 100
A157: 156 | B157: 668 | C157: 2108 | D157: 64 | E157: 100
A158: 157 | B158: 464 | C158: 2108 | D158: 32 | E158: 100
A159: 158 | B159: 624 | C159: 2108 | D159: 64 | E159: 100
A160: 159 | B160: 548 | C160: 2108 | D160: 64 | E160: 100
A161: 160 | B161: 1500 | C161: 2108 | D161: 128 | E161: 100
A162: 161 | B162: 448 | C162: 2108 | D162: 32 | E162: 100
A163: 162 | B163: 860 | C163: 2108 | D163: 64 | E163: 100
A164: 163 | B164: 864 | C164: 2108 | D164: 128 | E164: 100
A165: 164 | B165: 496 | C165: 2108 | D165: 64 | E165: 100
A166: 165 | B166: 684 | C166: 2108 | D166: 64 | E166: 100
A167: 166 | B167: 704 | C167: 2108 | D167: 64 | E167: 100
A168: 167 | B168: 1020 | C168: 2108 | D168: 128 | E168: 100
A169: 168 | B169: 400 | C169: 2108 | D169: 32 | E169: 100
A170: 169 | B170: 312 | C170: 2108 | D170: 32 | E170: 100
A171: 170 | B171: 700 | C171: 2108 | D171: 64 | E171: 100
A172: 171 | B172: 336 | C172: 2108 | D172: 32 | E172: 100
A173: 172 | B173: 136 | C173: 2108 | D173: 16 | E173: 100
A174: 173 | B174: 396 | C174: 2108 | D174: 32 | E174: 100
A175: 174 | B175: 388 | C175: 2108 | D175: 32 | E175: 100
A176: 175 | B176: 304 | C176: 2108 | D176: 32 | E176: 100
A177: 176 | B177: 304 | C177: 2108 | D177: 16 | E177: 100
A178: 177 | B178: 240 | C178: 2108 | D178: 16 | E178: 100
A179: 178 | B179: 416 | C179: 2108 | D179: 32 | E179: 100
A180: 179 | B180: 264 | C180: 2108 | D180: 32 | E180: 100
A181: 180 | B181: 528 | C181: 2108 | D181: 32 | E181: 100
A182: 181 | B182: 260 | C182: 2108 | D182: 32 | E182: 100
A183: 182 | B183: 428 | C183: 2108 | D183: 32 | E183: 100
A184: 183 | B184: 296 | C184: 2108 | D184: 32 | E184: 100
A185: 184 | B185: 1368 | C185: 2108 | D185: 128 | E185: 100
A186: 185 | B186: 492 | C186: 2108 | D186: 64 | E186: 100
A187: 186 | B187: 340 | C187: 2108 | D187: 32 | E187: 100
A188: 187 | B188: 836 | C188: 2108 | D188: 64 | E188: 100
A189: 188 | B189: 1248 | C189: 2108 | D189: 128 | E189: 100
A190: 189 | B190: 352 | C190: 2108 | D190: 32 | E190: 100
A191: 190 | B191: 616 | C191: 2108 | D191: 64 | E191: 100
A192: 191 | B192: 672 | C192: 2108 | D192: 64 | E192: 100
A193: 192 | B193: 556 | C193: 2108 | D193: 64 | E193: 100
A194: 193 | B194: 268 | C194: 2108 | D194: 32 | E194: 100
A195: 194 | B195: 732 | C195: 2108 | D195: 64 | E195: =INT(A195/100)*100 -> 100
A196: 195 | B196: 132 | C196: 2108 | D196: 16 | E196: 100
A197: 196 | B197: 720 | C197: 2108 | D197: 64 | E197: 100
A198: 197 | B198: 616 | C198: 2108 | D198: 64 | E198: 100
A199: 198 | B199: 708 | C199: 2108 | D199: 64 | E199: 100
A200: 199 | B200: 420 | C200: 2108 | D200: 32 | E200: 100
... 373 more rows

Sheet Training Results V2
A1: Episode | B1: Score | C1: Highscore | D1: Highest Tile | E1: Group
A2: 1 | B2: 292 | C2: 0 | D2: 32 | E2: =INT(A2/100)*100 -> 0
A3: 2 | B3: 192 | C3: 292 | D3: 16 | E3: =INT(A3/100)*100 -> 0
A4: 3 | B4: 1092 | C4: 292 | D4: 64 | E4: 0
A5: 4 | B5: 412 | C5: 1092 | D5: 32 | E5: 0
A6: 5 | B6: 124 | C6: 1092 | D6: 16 | E6: 0
A7: 6 | B7: 784 | C7: 1092 | D7: 64 | E7: 0
A8: 7 | B8: 236 | C8: 1092 | D8: 16 | E8: 0
A9: 8 | B9: 216 | C9: 1092 | D9: 16 | E9: 0
A10: 9 | B10: 432 | C10: 1092 | D10: 32 | E10: 0
A11: 10 | B11: 300 | C11: 1092 | D11: 32 | E11: 0
A12: 11 | B12: 84 | C12: 1092 | D12: 8 | E12: 0
A13: 12 | B13: 428 | C13: 1092 | D13: 32 | E13: 0
A14: 13 | B14: 540 | C14: 1092 | D14: 32 | E14: 0
A15: 14 | B15: 276 | C15: 1092 | D15: 32 | E15: 0
A16: 15 | B16: 536 | C16: 1092 | D16: 64 | E16: 0
A17: 16 | B17: 448 | C17: 1092 | D17: 32 | E17: 0
A18: 17 | B18: 380 | C18: 1092 | D18: 32 | E18: 0
A19: 18 | B19: 452 | C19: 1092 | D19: 32 | E19: 0
A20: 19 | B20: 456 | C20: 1092 | D20: 32 | E20: 0
A21: 20 | B21: 276 | C21: 1092 | D21: 32 | E21: 0
A22: 21 | B22: 348 | C22: 1092 | D22: 32 | E22: 0
A23: 22 | B23: 616 | C23: 1092 | D23: 64 | E23: 0
A24: 23 | B24: 308 | C24: 1092 | D24: 32 | E24: 0
A25: 24 | B25: 604 | C25: 1092 | D25: 64 | E25: 0
A26: 25 | B26: 152 | C26: 1092 | D26: 16 | E26: 0
A27: 26 | B27: 296 | C27: 1092 | D27: 32 | E27: 0
A28: 27 | B28: 768 | C28: 1092 | D28: 64 | E28: 0
A29: 28 | B29: 528 | C29: 1092 | D29: 64 | E29: 0
A30: 29 | B30: 372 | C30: 1092 | D30: 32 | E30: 0
A31: 30 | B31: 384 | C31: 1092 | D31: 32 | E31: 0
A32: 31 | B32: 388 | C32: 1092 | D32: 32 | E32: 0
A33: 32 | B33: 564 | C33: 1092 | D33: 64 | E33: 0
A34: 33 | B34: 708 | C34: 1092 | D34: 64 | E34: 0
A35: 34 | B35: 724 | C35: 1092 | D35: 64 | E35: 0
A36: 35 | B36: 260 | C36: 1092 | D36: 32 | E36: 0
A37: 36 | B37: 360 | C37: 1092 | D37: 32 | E37: 0
A38: 37 | B38: 752 | C38: 1092 | D38: 64 | E38: 0
A39: 38 | B39: 180 | C39: 1092 | D39: 16 | E39: 0
A40: 39 | B40: 556 | C40: 1092 | D40: 32 | E40: 0
A41: 40 | B41: 380 | C41: 1092 | D41: 32 | E41: 0
A42: 41 | B42: 320 | C42: 1092 | D42: 32 | E42: 0
A43: 42 | B43: 448 | C43: 1092 | D43: 32 | E43: 0
A44: 43 | B44: 188 | C44: 1092 | D44: 16 | E44: 0
A45: 44 | B45: 652 | C45: 1092 | D45: 64 | E45: 0
A46: 45 | B46: 208 | C46: 1092 | D46: 16 | E46: 0
A47: 46 | B47: 416 | C47: 1092 | D47: 32 | E47: 0
A48: 47 | B48: 1392 | C48: 1092 | D48: 128 | E48: 0
A49: 48 | B49: 1204 | C49: 1392 | D49: 128 | E49: 0
A50: 49 | B50: 612 | C50: 1392 | D50: 64 | E50: 0
A51: 50 | B51: 612 | C51: 1392 | D51: 32 | E51: 0
A52: 51 | B52: 800 | C52: 1392 | D52: 64 | E52: 0
A53: 52 | B53: 640 | C53: 1392 | D53: 64 | E53: 0
A54: 53 | B54: 720 | C54: 1392 | D54: 64 | E54: 0
A55: 54 | B55: 508 | C55: 1392 | D55: 32 | E55: 0
A56: 55 | B56: 648 | C56: 1392 | D56: 64 | E56: 0
A57: 56 | B57: 296 | C57: 1392 | D57: 32 | E57: 0
A58: 57 | B58: 660 | C58: 1392 | D58: 64 | E58: 0
A59: 58 | B59: 828 | C59: 1392 | D59: 64 | E59: 0
A60: 59 | B60: 100 | C60: 1392 | D60: 16 | E60: 0
A61: 60 | B61: 588 | C61: 1392 | D61: 32 | E61: 0
A62: 61 | B62: 628 | C62: 1392 | D62: 64 | E62: 0
A63: 62 | B63: 260 | C63: 1392 | D63: 32 | E63: 0
A64: 63 | B64: 628 | C64: 1392 | D64: 64 | E64: 0
A65: 64 | B65: 636 | C65: 1392 | D65: 64 | E65: 0
A66: 65 | B66: 684 | C66: 1392 | D66: 64 | E66: 0
A67: 66 | B67: 164 | C67: 1392 | D67: 16 | E67: =INT(A67/100)*100 -> 0
A68: 67 | B68: 116 | C68: 1392 | D68: 16 | E68: 0
A69: 68 | B69: 1604 | C69: 1392 | D69: 128 | E69: 0
A70: 69 | B70: 504 | C70: 1604 | D70: 32 | E70: 0
A71: 70 | B71: 244 | C71: 1604 | D71: 16 | E71: 0
A72: 71 | B72: 380 | C72: 1604 | D72: 32 | E72: 0
A73: 72 | B73: 144 | C73: 1604 | D73: 16 | E73: 0
A74: 73 | B74: 464 | C74: 1604 | D74: 32 | E74: 0
A75: 74 | B75: 1284 | C75: 1604 | D75: 128 | E75: 0
A76: 75 | B76: 996 | C76: 1604 | D76: 128 | E76: 0
A77: 76 | B77: 380 | C77: 1604 | D77: 32 | E77: 0
A78: 77 | B78: 204 | C78: 1604 | D78: 16 | E78: 0
A79: 78 | B79: 500 | C79: 1604 | D79: 64 | E79: 0
A80: 79 | B80: 736 | C80: 1604 | D80: 64 | E80: 0
A81: 80 | B81: 352 | C81: 1604 | D81: 32 | E81: 0
A82: 81 | B82: 680 | C82: 1604 | D82: 64 | E82: 0
A83: 82 | B83: 444 | C83: 1604 | D83: 32 | E83: 0
A84: 83 | B84: 752 | C84: 1604 | D84: 64 | E84: 0
A85: 84 | B85: 248 | C85: 1604 | D85: 32 | E85: 0
A86: 85 | B86: 292 | C86: 1604 | D86: 32 | E86: 0
A87: 86 | B87: 880 | C87: 1604 | D87: 64 | E87: 0
A88: 87 | B88: 320 | C88: 1604 | D88: 32 | E88: 0
A89: 88 | B89: 572 | C89: 1604 | D89: 64 | E89: 0
A90: 89 | B90: 116 | C90: 1604 | D90: 16 | E90: 0
A91: 90 | B91: 244 | C91: 1604 | D91: 16 | E91: 0
A92: 91 | B92: 228 | C92: 1604 | D92: 32 | E92: 0
A93: 92 | B93: 188 | C93: 1604 | D93: 16 | E93: 0
A94: 93 | B94: 116 | C94: 1604 | D94: 16 | E94: 0
A95: 94 | B95: 132 | C95: 1604 | D95: 16 | E95: 0
A96: 95 | B96: 604 | C96: 1604 | D96: 64 | E96: 0
A97: 96 | B97: 620 | C97: 1604 | D97: 32 | E97: 0
A98: 97 | B98: 1028 | C98: 1604 | D98: 128 | E98: 0
A99: 98 | B99: 720 | C99: 1604 | D99: 64 | E99: 0
A100: 99 | B100: 164 | C100: 1604 | D100: 16 | E100: 0
A101: 100 | B101: 464 | C101: 1604 | D101: 32 | E101: 100
A102: 101 | B102: 304 | C102: 1604 | D102: 32 | E102: 100
A103: 102 | B103: 676 | C103: 1604 | D103: 64 | E103: 100
A104: 103 | B104: 316 | C104: 1604 | D104: 32 | E104: 100
A105: 104 | B105: 328 | C105: 1604 | D105: 32 | E105: 100
A106: 105 | B106: 324 | C106: 1604 | D106: 32 | E106: 100
A107: 106 | B107: 188 | C107: 1604 | D107: 32 | E107: 100
A108: 107 | B108: 220 | C108: 1604 | D108: 32 | E108: 100
A109: 108 | B109: 128 | C109: 1604 | D109: 16 | E109: 100
A110: 109 | B110: 344 | C110: 1604 | D110: 32 | E110: 100
A111: 110 | B111: 448 | C111: 1604 | D111: 32 | E111: 100
A112: 111 | B112: 808 | C112: 1604 | D112: 64 | E112: 100
A113: 112 | B113: 564 | C113: 1604 | D113: 64 | E113: 100
A114: 113 | B114: 404 | C114: 1604 | D114: 64 | E114: 100
A115: 114 | B115: 328 | C115: 1604 | D115: 32 | E115: 100
A116: 115 | B116: 192 | C116: 1604 | D116: 16 | E116: 100
A117: 116 | B117: 232 | C117: 1604 | D117: 32 | E117: 100
A118: 117 | B118: 496 | C118: 1604 | D118: 32 | E118: 100
A119: 118 | B119: 424 | C119: 1604 | D119: 64 | E119: 100
A120: 119 | B120: 684 | C120: 1604 | D120: 64 | E120: 100
A121: 120 | B121: 668 | C121: 1604 | D121: 64 | E121: 100
A122: 121 | B122: 248 | C122: 1604 | D122: 32 | E122: 100
A123: 122 | B123: 480 | C123: 1604 | D123: 32 | E123: 100
A124: 123 | B124: 84 | C124: 1604 | D124: 8 | E124: 100
A125: 124 | B125: 132 | C125: 1604 | D125: 16 | E125: 100
A126: 125 | B126: 672 | C126: 1604 | D126: 32 | E126: 100
A127: 126 | B127: 100 | C127: 1604 | D127: 8 | E127: 100
A128: 127 | B128: 384 | C128: 1604 | D128: 32 | E128: 100
A129: 128 | B129: 564 | C129: 1604 | D129: 64 | E129: 100
A130: 129 | B130: 332 | C130: 1604 | D130: 32 | E130: 100
A131: 130 | B131: 240 | C131: 1604 | D131: 32 | E131: =INT(A131/100)*100 -> 100
A132: 131 | B132: 512 | C132: 1604 | D132: 32 | E132: 100
A133: 132 | B133: 388 | C133: 1604 | D133: 64 | E133: 100
A134: 133 | B134: 152 | C134: 1604 | D134: 16 | E134: 100
A135: 134 | B135: 352 | C135: 1604 | D135: 32 | E135: 100
A136: 135 | B136: 568 | C136: 1604 | D136: 64 | E136: 100
A137: 136 | B137: 1196 | C137: 1604 | D137: 128 | E137: 100
A138: 137 | B138: 452 | C138: 1604 | D138: 64 | E138: 100
A139: 138 | B139: 144 | C139: 1604 | D139: 16 | E139: 100
A140: 139 | B140: 348 | C140: 1604 | D140: 32 | E140: 100
A141: 140 | B141: 204 | C141: 1604 | D141: 16 | E141: 100
A142: 141 | B142: 212 | C142: 1604 | D142: 16 | E142: 100
A143: 142 | B143: 300 | C143: 1604 | D143: 32 | E143: 100
A144: 143 | B144: 224 | C144: 1604 | D144: 32 | E144: 100
A145: 144 | B145: 336 | C145: 1604 | D145: 32 | E145: 100
A146: 145 | B146: 580 | C146: 1604 | D146: 64 | E146: 100
A147: 146 | B147: 432 | C147: 1604 | D147: 32 | E147: 100
A148: 147 | B148: 224 | C148: 1604 | D148: 16 | E148: 100
A149: 148 | B149: 288 | C149: 1604 | D149: 32 | E149: 100
A150: 149 | B150: 508 | C150: 1604 | D150: 64 | E150: 100
A151: 150 | B151: 268 | C151: 1604 | D151: 32 | E151: 100
A152: 151 | B152: 384 | C152: 1604 | D152: 32 | E152: 100
A153: 152 | B153: 268 | C153: 1604 | D153: 16 | E153: 100
A154: 153 | B154: 680 | C154: 1604 | D154: 64 | E154: 100
A155: 154 | B155: 292 | C155: 1604 | D155: 32 | E155: 100
A156: 155 | B156: 304 | C156: 1604 | D156: 32 | E156: 100
A157: 156 | B157: 256 | C157: 1604 | D157: 32 | E157: 100
A158: 157 | B158: 372 | C158: 1604 | D158: 32 | E158: 100
A159: 158 | B159: 160 | C159: 1604 | D159: 16 | E159: 100
A160: 159 | B160: 84 | C160: 1604 | D160: 8 | E160: 100
A161: 160 | B161: 256 | C161: 1604 | D161: 16 | E161: 100
A162: 161 | B162: 132 | C162: 1604 | D162: 16 | E162: 100
A163: 162 | B163: 176 | C163: 1604 | D163: 16 | E163: 100
A164: 163 | B164: 1100 | C164: 1604 | D164: 64 | E164: 100
A165: 164 | B165: 792 | C165: 1604 | D165: 64 | E165: 100
A166: 165 | B166: 352 | C166: 1604 | D166: 32 | E166: 100
A167: 166 | B167: 536 | C167: 1604 | D167: 64 | E167: 100
A168: 167 | B168: 500 | C168: 1604 | D168: 32 | E168: 100
A169: 168 | B169: 732 | C169: 1604 | D169: 64 | E169: 100
A170: 169 | B170: 448 | C170: 1604 | D170: 32 | E170: 100
A171: 170 | B171: 120 | C171: 1604 | D171: 16 | E171: 100
A172: 171 | B172: 360 | C172: 1604 | D172: 32 | E172: 100
A173: 172 | B173: 524 | C173: 1604 | D173: 64 | E173: 100
A174: 173 | B174: 960 | C174: 1604 | D174: 128 | E174: 100
A175: 174 | B175: 436 | C175: 1604 | D175: 64 | E175: 100
A176: 175 | B176: 440 | C176: 1604 | D176: 32 | E176: 100
A177: 176 | B177: 396 | C177: 1604 | D177: 32 | E177: 100
A178: 177 | B178: 624 | C178: 1604 | D178: 64 | E178: 100
A179: 178 | B179: 256 | C179: 1604 | D179: 32 | E179: 100
A180: 179 | B180: 184 | C180: 1604 | D180: 16 | E180: 100
A181: 180 | B181: 284 | C181: 1604 | D181: 32 | E181: 100
A182: 181 | B182: 228 | C182: 1604 | D182: 16 | E182: 100
A183: 182 | B183: 588 | C183: 1604 | D183: 64 | E183: 100
A184: 183 | B184: 424 | C184: 1604 | D184: 32 | E184: 100
A185: 184 | B185: 460 | C185: 1604 | D185: 32 | E185: 100
A186: 185 | B186: 320 | C186: 1604 | D186: 32 | E186: 100
A187: 186 | B187: 400 | C187: 1604 | D187: 32 | E187: 100
A188: 187 | B188: 180 | C188: 1604 | D188: 16 | E188: 100
A189: 188 | B189: 84 | C189: 1604 | D189: 8 | E189: 100
A190: 189 | B190: 264 | C190: 1604 | D190: 32 | E190: 100
A191: 190 | B191: 412 | C191: 1604 | D191: 32 | E191: 100
A192: 191 | B192: 336 | C192: 1604 | D192: 32 | E192: 100
A193: 192 | B193: 416 | C193: 1604 | D193: 32 | E193: 100
A194: 193 | B194: 292 | C194: 1604 | D194: 32 | E194: 100
A195: 194 | B195: 456 | C195: 1604 | D195: 32 | E195: =INT(A195/100)*100 -> 100
A196: 195 | B196: 180 | C196: 1604 | D196: 16 | E196: 100
A197: 196 | B197: 664 | C197: 1604 | D197: 64 | E197: 100
A198: 197 | B198: 604 | C198: 1604 | D198: 64 | E198: 100
A199: 198 | B199: 1008 | C199: 1604 | D199: 64 | E199: 100
A200: 199 | B200: 716 | C200: 1604 | D200: 64 | E200: 100
... 2179 more rows

Sheet Training Results V1
A1: Episode | B1: Score | C1: Highscore | D1: Highest Tile | E1: Group
A2: 1 | B2: 1412 | C2: 0 | D2: 128 | E2: =INT(A2/100)*100 -> 0
A3: 2 | B3: 332 | C3: 1412 | D3: 32 | E3: =INT(A3/100)*100 -> 0
A4: 3 | B4: 596 | C4: 1412 | D4: 64 | E4: 0
A5: 4 | B5: 624 | C5: 1412 | D5: 64 | E5: 0
A6: 5 | B6: 268 | C6: 1412 | D6: 32 | E6: 0
A7: 6 | B7: 304 | C7: 1412 | D7: 32 | E7: 0
A8: 7 | B8: 532 | C8: 1412 | D8: 32 | E8: 0
A9: 8 | B9: 176 | C9: 1412 | D9: 16 | E9: 0
A10: 9 | B10: 124 | C10: 1412 | D10: 16 | E10: 0
A11: 10 | B11: 224 | C11: 1412 | D11: 16 | E11: 0
A12: 11 | B12: 336 | C12: 1412 | D12: 32 | E12: 0
A13: 12 | B13: 304 | C13: 1412 | D13: 32 | E13: 0
A14: 13 | B14: 408 | C14: 1412 | D14: 32 | E14: 0
A15: 14 | B15: 852 | C15: 1412 | D15: 64 | E15: 0
A16: 15 | B16: 164 | C16: 1412 | D16: 16 | E16: 0
A17: 16 | B17: 140 | C17: 1412 | D17: 16 | E17: 0
A18: 17 | B18: 488 | C18: 1412 | D18: 64 | E18: 0
A19: 18 | B19: 288 | C19: 1412 | D19: 32 | E19: 0
A20: 19 | B20: 520 | C20: 1412 | D20: 64 | E20: 0
A21: 20 | B21: 404 | C21: 1412 | D21: 32 | E21: 0
A22: 21 | B22: 656 | C22: 1412 | D22: 64 | E22: 0
A23: 22 | B23: 752 | C23: 1412 | D23: 64 | E23: 0
A24: 23 | B24: 1200 | C24: 1412 | D24: 128 | E24: 0
A25: 24 | B25: 680 | C25: 1412 | D25: 64 | E25: 0
A26: 25 | B26: 280 | C26: 1412 | D26: 32 | E26: 0
A27: 26 | B27: 1328 | C27: 1412 | D27: 128 | E27: 0
A28: 27 | B28: 336 | C28: 1412 | D28: 32 | E28: 0
A29: 28 | B29: 816 | C29: 1412 | D29: 64 | E29: 0
A30: 29 | B30: 1724 | C30: 1412 | D30: 128 | E30: 0
A31: 30 | B31: 528 | C31: 1724 | D31: 64 | E31: 0
A32: 31 | B32: 624 | C32: 1724 | D32: 64 | E32: 0
A33: 32 | B33: 804 | C33: 1724 | D33: 64 | E33: 0
A34: 33 | B34: 444 | C34: 1724 | D34: 32 | E34: 0
A35: 34 | B35: 624 | C35: 1724 | D35: 64 | E35: 0
A36: 35 | B36: 1664 | C36: 1724 | D36: 128 | E36: 0
A37: 36 | B37: 952 | C37: 1724 | D37: 64 | E37: 0
A38: 37 | B38: 352 | C38: 1724 | D38: 32 | E38: 0
A39: 38 | B39: 368 | C39: 1724 | D39: 32 | E39: 0
A40: 39 | B40: 704 | C40: 1724 | D40: 64 | E40: 0
A41: 40 | B41: 632 | C41: 1724 | D41: 64 | E41: 0
A42: 41 | B42: 600 | C42: 1724 | D42: 32 | E42: 0
A43: 42 | B43: 736 | C43: 1724 | D43: 64 | E43: 0
A44: 43 | B44: 800 | C44: 1724 | D44: 64 | E44: 0
A45: 44 | B45: 832 | C45: 1724 | D45: 64 | E45: 0
A46: 45 | B46: 780 | C46: 1724 | D46: 64 | E46: 0
A47: 46 | B47: 644 | C47: 1724 | D47: 64 | E47: 0
A48: 47 | B48: 360 | C48: 1724 | D48: 32 | E48: 0
A49: 48 | B49: 1244 | C49: 1724 | D49: 128 | E49: 0
A50: 49 | B50: 796 | C50: 1724 | D50: 64 | E50: 0
A51: 50 | B51: 948 | C51: 1724 | D51: 64 | E51: 0
A52: 51 | B52: 524 | C52: 1724 | D52: 64 | E52: 0
A53: 52 | B53: 232 | C53: 1724 | D53: 32 | E53: 0
A54: 53 | B54: 472 | C54: 1724 | D54: 32 | E54: 0
A55: 54 | B55: 812 | C55: 1724 | D55: 64 | E55: 0
A56: 55 | B56: 160 | C56: 1724 | D56: 16 | E56: 0
A57: 56 | B57: 460 | C57: 1724 | D57: 32 | E57: 0
A58: 57 | B58: 1060 | C58: 1724 | D58: 128 | E58: 0
A59: 58 | B59: 248 | C59: 1724 | D59: 32 | E59: 0
A60: 59 | B60: 1120 | C60: 1724 | D60: 128 | E60: 0
A61: 60 | B61: 632 | C61: 1724 | D61: 64 | E61: 0
A62: 61 | B62: 260 | C62: 1724 | D62: 32 | E62: 0
A63: 62 | B63: 1632 | C63: 1724 | D63: 128 | E63: 0
A64: 63 | B64: 400 | C64: 1724 | D64: 32 | E64: 0
A65: 64 | B65: 436 | C65: 1724 | D65: 32 | E65: 0
A66: 65 | B66: 84 | C66: 1724 | D66: 8 | E66: 0
A67: 66 | B67: 420 | C67: 1724 | D67: 32 | E67: =INT(A67/100)*100 -> 0
A68: 67 | B68: 320 | C68: 1724 | D68: 32 | E68: 0
A69: 68 | B69: 496 | C69: 1724 | D69: 32 | E69: 0
A70: 69 | B70: 532 | C70: 1724 | D70: 32 | E70: 0
A71: 70 | B71: 332 | C71: 1724 | D71: 32 | E71: 0
A72: 71 | B72: 260 | C72: 1724 | D72: 32 | E72: 0
A73: 72 | B73: 356 | C73: 1724 | D73: 32 | E73: 0
A74: 73 | B74: 124 | C74: 1724 | D74: 16 | E74: 0
A75: 74 | B75: 188 | C75: 1724 | D75: 16 | E75: 0
A76: 75 | B76: 428 | C76: 1724 | D76: 32 | E76: 0
A77: 76 | B77: 600 | C77: 1724 | D77: 64 | E77: 0
A78: 77 | B78: 460 | C78: 1724 | D78: 32 | E78: 0
A79: 78 | B79: 560 | C79: 1724 | D79: 32 | E79: 0
A80: 79 | B80: 740 | C80: 1724 | D80: 64 | E80: 0
A81: 80 | B81: 608 | C81: 1724 | D81: 64 | E81: 0
A82: 81 | B82: 488 | C82: 1724 | D82: 64 | E82: 0
A83: 82 | B83: 872 | C83: 1724 | D83: 64 | E83: 0
A84: 83 | B84: 488 | C84: 1724 | D84: 32 | E84: 0
A85: 84 | B85: 344 | C85: 1724 | D85: 32 | E85: 0
A86: 85 | B86: 344 | C86: 1724 | D86: 32 | E86: 0
A87: 86 | B87: 364 | C87: 1724 | D87: 32 | E87: 0
A88: 87 | B88: 420 | C88: 1724 | D88: 64 | E88: 0
A89: 88 | B89: 276 | C89: 1724 | D89: 32 | E89: 0
A90: 89 | B90: 460 | C90: 1724 | D90: 32 | E90: 0
A91: 90 | B91: 244 | C91: 1724 | D91: 32 | E91: 0
A92: 91 | B92: 320 | C92: 1724 | D92: 32 | E92: 0
A93: 92 | B93: 352 | C93: 1724 | D93: 32 | E93: 0
A94: 93 | B94: 124 | C94: 1724 | D94: 16 | E94: 0
A95: 94 | B95: 252 | C95: 1724 | D95: 32 | E95: 0
A96: 95 | B96: 156 | C96: 1724 | D96: 16 | E96: 0
A97: 96 | B97: 372 | C97: 1724 | D97: 32 | E97: 0
A98: 97 | B98: 720 | C98: 1724 | D98: 64 | E98: 0
A99: 98 | B99: 628 | C99: 1724 | D99: 64 | E99: 0
A100: 99 | B100: 348 | C100: 1724 | D100: 32 | E100: 0
A101: 100 | B101: 564 | C101: 1724 | D101: 64 | E101: 100
A102: 101 | B102: 272 | C102: 1724 | D102: 16 | E102: 100
A103: 102 | B103: 416 | C103: 1724 | D103: 32 | E103: 100
A104: 103 | B104: 924 | C104: 1724 | D104: 64 | E104: 100
A105: 104 | B105: 712 | C105: 1724 | D105: 64 | E105: 100
A106: 105 | B106: 372 | C106: 1724 | D106: 32 | E106: 100
A107: 106 | B107: 204 | C107: 1724 | D107: 32 | E107: 100
A108: 107 | B108: 212 | C108: 1724 | D108: 16 | E108: 100
A109: 108 | B109: 276 | C109: 1724 | D109: 16 | E109: 100
A110: 109 | B110: 1352 | C110: 1724 | D110: 128 | E110: 100
A111: 110 | B111: 812 | C111: 1724 | D111: 64 | E111: 100
A112: 111 | B112: 204 | C112: 1724 | D112: 16 | E112: 100
A113: 112 | B113: 176 | C113: 1724 | D113: 16 | E113: 100
A114: 113 | B114: 196 | C114: 1724 | D114: 16 | E114: 100
A115: 114 | B115: 356 | C115: 1724 | D115: 32 | E115: 100
A116: 115 | B116: 140 | C116: 1724 | D116: 16 | E116: 100
A117: 116 | B117: 304 | C117: 1724 | D117: 32 | E117: 100
A118: 117 | B118: 192 | C118: 1724 | D118: 16 | E118: 100
A119: 118 | B119: 204 | C119: 1724 | D119: 16 | E119: 100
A120: 119 | B120: 268 | C120: 1724 | D120: 32 | E120: 100
A121: 120 | B121: 92 | C121: 1724 | D121: 8 | E121: 100
A122: 121 | B122: 300 | C122: 1724 | D122: 32 | E122: 100
A123: 122 | B123: 220 | C123: 1724 | D123: 16 | E123: 100
A124: 123 | B124: 228 | C124: 1724 | D124: 16 | E124: 100
A125: 124 | B125: 276 | C125: 1724 | D125: 16 | E125: 100
A126: 125 | B126: 316 | C126: 1724 | D126: 32 | E126: 100
A127: 126 | B127: 276 | C127: 1724 | D127: 32 | E127: 100
A128: 127 | B128: 356 | C128: 1724 | D128: 32 | E128: 100
A129: 128 | B129: 404 | C129: 1724 | D129: 32 | E129: 100
A130: 129 | B130: 84 | C130: 1724 | D130: 8 | E130: 100
A131: 130 | B131: 432 | C131: 1724 | D131: 64 | E131: =INT(A131/100)*100 -> 100
A132: 131 | B132: 272 | C132: 1724 | D132: 32 | E132: 100
A133: 132 | B133: 544 | C133: 1724 | D133: 32 | E133: 100
A134: 133 | B134: 276 | C134: 1724 | D134: 32 | E134: 100
A135: 134 | B135: 328 | C135: 1724 | D135: 32 | E135: 100
A136: 135 | B136: 316 | C136: 1724 | D136: 32 | E136: 100
A137: 136 | B137: 256 | C137: 1724 | D137: 32 | E137: 100
A138: 137 | B138: 420 | C138: 1724 | D138: 32 | E138: 100
A139: 138 | B139: 308 | C139: 1724 | D139: 32 | E139: 100
A140: 139 | B140: 256 | C140: 1724 | D140: 32 | E140: 100
A141: 140 | B141: 352 | C141: 1724 | D141: 32 | E141: 100
A142: 141 | B142: 408 | C142: 1724 | D142: 64 | E142: 100
A143: 142 | B143: 576 | C143: 1724 | D143: 64 | E143: 100
A144: 143 | B144: 380 | C144: 1724 | D144: 32 | E144: 100
A145: 144 | B145: 244 | C145: 1724 | D145: 32 | E145: 100
A146: 145 | B146: 176 | C146: 1724 | D146: 16 | E146: 100
A147: 146 | B147: 496 | C147: 1724 | D147: 64 | E147: 100
A148: 147 | B148: 540 | C148: 1724 | D148: 32 | E148: 100
A149: 148 | B149: 1696 | C149: 1724 | D149: 128 | E149: 100
A150: 149 | B150: 252 | C150: 1724 | D150: 32 | E150: 100
A151: 150 | B151: 268 | C151: 1724 | D151: 32 | E151: 100
A152: 151 | B152: 208 | C152: 1724 | D152: 16 | E152: 100
A153: 152 | B153: 492 | C153: 1724 | D153: 32 | E153: 100
A154: 153 | B154: 780 | C154: 1724 | D154: 64 | E154: 100
A155: 154 | B155: 328 | C155: 1724 | D155: 32 | E155: 100
A156: 155 | B156: 212 | C156: 1724 | D156: 16 | E156: 100
A157: 156 | B157: 240 | C157: 1724 | D157: 32 | E157: 100
A158: 157 | B158: 132 | C158: 1724 | D158: 16 | E158: 100
A159: 158 | B159: 304 | C159: 1724 | D159: 32 | E159: 100
A160: 159 | B160: 304 | C160: 1724 | D160: 32 | E160: 100
A161: 160 | B161: 376 | C161: 1724 | D161: 32 | E161: 100
A162: 161 | B162: 172 | C162: 1724 | D162: 16 | E162: 100
A163: 162 | B163: 112 | C163: 1724 | D163: 16 | E163: 100
A164: 163 | B164: 104 | C164: 1724 | D164: 16 | E164: 100
A165: 164 | B165: 596 | C165: 1724 | D165: 64 | E165: 100
A166: 165 | B166: 588 | C166: 1724 | D166: 64 | E166: 100
A167: 166 | B167: 352 | C167: 1724 | D167: 32 | E167: 100
A168: 167 | B168: 400 | C168: 1724 | D168: 32 | E168: 100
A169: 168 | B169: 180 | C169: 1724 | D169: 16 | E169: 100
A170: 169 | B170: 116 | C170: 1724 | D170: 16 | E170: 100
A171: 170 | B171: 576 | C171: 1724 | D171: 32 | E171: 100
A172: 171 | B172: 340 | C172: 1724 | D172: 32 | E172: 100
A173: 172 | B173: 196 | C173: 1724 | D173: 16 | E173: 100
A174: 173 | B174: 528 | C174: 1724 | D174: 32 | E174: 100
A175: 174 | B175: 372 | C175: 1724 | D175: 32 | E175: 100
A176: 175 | B176: 400 | C176: 1724 | D176: 32 | E176: 100
A177: 176 | B177: 420 | C177: 1724 | D177: 64 | E177: 100
A178: 177 | B178: 276 | C178: 1724 | D178: 32 | E178: 100
A179: 178 | B179: 288 | C179: 1724 | D179: 32 | E179: 100
A180: 179 | B180: 444 | C180: 1724 | D180: 32 | E180: 100
A181: 180 | B181: 488 | C181: 1724 | D181: 64 | E181: 100
A182: 181 | B182: 312 | C182: 1724 | D182: 32 | E182: 100
A183: 182 | B183: 1088 | C183: 1724 | D183: 128 | E183: 100
A184: 183 | B184: 220 | C184: 1724 | D184: 16 | E184: 100
A185: 184 | B185: 236 | C185: 1724 | D185: 16 | E185: 100
A186: 185 | B186: 936 | C186: 1724 | D186: 128 | E186: 100
A187: 186 | B187: 208 | C187: 1724 | D187: 16 | E187: 100
A188: 187 | B188: 1272 | C188: 1724 | D188: 128 | E188: 100
A189: 188 | B189: 208 | C189: 1724 | D189: 16 | E189: 100
A190: 189 | B190: 72 | C190: 1724 | D190: 8 | E190: 100
A191: 190 | B191: 88 | C191: 1724 | D191: 8 | E191: 100
A192: 191 | B192: 284 | C192: 1724 | D192: 32 | E192: 100
A193: 192 | B193: 288 | C193: 1724 | D193: 32 | E193: 100
A194: 193 | B194: 492 | C194: 1724 | D194: 32 | E194: 100
A195: 194 | B195: 528 | C195: 1724 | D195: 64 | E195: =INT(A195/100)*100 -> 100
A196: 195 | B196: 220 | C196: 1724 | D196: 16 | E196: 100
A197: 196 | B197: 704 | C197: 1724 | D197: 64 | E197: 100
A198: 197 | B198: 152 | C198: 1724 | D198: 16 | E198: 100
A199: 198 | B199: 340 | C199: 1724 | D199: 32 | E199: 100
A200: 199 | B200: 192 | C200: 1724 | D200: 16 | E200: 100
... 1885 more rows

Sheet Final Training Time Stamps
A1: Episode Number | B1: File Name | C1: Time Created | D1: Time to Train 50 Episodes
A2: 50 | B2: dqn_model_episode_50.pth | C2: 2024-09-03T19:51:33 | D2: =D3 -> 00:09:20
A3: =VALUE(MID(B3, SEARCH("episode_",B3) + 8, SEARCH(".pth", B3) - SEARCH("episode_", B3) - 8)) -> 100 | B3: dqn_model_episode_100.pth | C3: 2024-09-03T20:00:53 | D3: =TimeStampsV4[[#This Row],[Time Created]]-C2 -> 00:09:20
A4: 150 | B4: dqn_model_episode_150.pth | C4: 2024-09-03T20:07:14 | D4: =TimeStampsV4[[#This Row],[Time Created]]-C3 -> 00:06:21
A5: 200 | B5: dqn_model_episode_200.pth | C5: 2024-09-03T20:12:54 | D5: =TimeStampsV4[[#This Row],[Time Created]]-C4 -> 00:05:40
A6: 250 | B6: dqn_model_episode_250.pth | C6: 2024-09-03T20:19:31 | D6: =TimeStampsV4[[#This Row],[Time Created]]-C5 -> 00:06:37
A7: 300 | B7: dqn_model_episode_300.pth | C7: 2024-09-03T20:25:44 | D7: =TimeStampsV4[[#This Row],[Time Created]]-C6 -> 00:06:13
A8: 350 | B8: dqn_model_episode_350.pth | C8: 2024-09-03T20:32:24 | D8: =TimeStampsV4[[#This Row],[Time Created]]-C7 -> 00:06:40
A9: 400 | B9: dqn_model_episode_400.pth | C9: 2024-09-03T20:40:11 | D9: =TimeStampsV4[[#This Row],[Time Created]]-C8 -> 00:07:47
A10: 450 | B10: dqn_model_episode_450.pth | C10: 2024-09-03T20:46:25 | D10: =TimeStampsV4[[#This Row],[Time Created]]-C9 -> 00:06:14
A11: 500 | B11: dqn_model_episode_500.pth | C11: 2024-09-03T20:53:33 | D11: =TimeStampsV4[[#This Row],[Time Created]]-C10 -> 00:07:08
A12: 550 | B12: dqn_model_episode_550.pth | C12: 2024-09-03T21:01:04 | D12: =TimeStampsV4[[#This Row],[Time Created]]-C11 -> 00:07:31
A13: 600 | B13: dqn_model_episode_600.pth | C13: 2024-09-03T21:08:27 | D13: =TimeStampsV4[[#This Row],[Time Created]]-C12 -> 00:07:23
A14: 650 | B14: dqn_model_episode_650.pth | C14: 2024-09-03T21:14:45 | D14: =TimeStampsV4[[#This Row],[Time Created]]-C13 -> 00:06:18
A15: 700 | B15: dqn_model_episode_700.pth | C15: 2024-09-03T21:19:25 | D15: =TimeStampsV4[[#This Row],[Time Created]]-C14 -> 00:04:40
A16: 750 | B16: dqn_model_episode_750.pth | C16: 2024-09-03T21:23:24 | D16: =TimeStampsV4[[#This Row],[Time Created]]-C15 -> 00:03:59
A17: 800 | B17: dqn_model_episode_800.pth | C17: 2024-09-03T21:28:58 | D17: =TimeStampsV4[[#This Row],[Time Created]]-C16 -> 00:05:34
A18: 850 | B18: dqn_model_episode_850.pth | C18: 2024-09-03T21:33:10 | D18: =TimeStampsV4[[#This Row],[Time Created]]-C17 -> 00:04:12
A19: 900 | B19: dqn_model_episode_900.pth | C19: 2024-09-03T21:39:31 | D19: =TimeStampsV4[[#This Row],[Time Created]]-C18 -> 00:06:21
A20: 950 | B20: dqn_model_episode_950.pth | C20: 2024-09-03T21:46:03 | D20: =TimeStampsV4[[#This Row],[Time Created]]-C19 -> 00:06:32
A21: 1000 | B21: dqn_model_episode_1000.pth | C21: 2024-09-03T22:02:43 | D21: =TimeStampsV4[[#This Row],[Time Created]]-C20 -> 00:16:40
A22: 1050 | B22: dqn_model_episode_1050.pth | C22: 2024-09-03T22:15:07 | D22: =TimeStampsV4[[#This Row],[Time Created]]-C21 -> 00:12:24
A23: 1100 | B23: dqn_model_episode_1100.pth | C23: 2024-09-03T22:27:54 | D23: =TimeStampsV4[[#This Row],[Time Created]]-C22 -> 00:12:47
A24: 1150 | B24: dqn_model_episode_1150.pth | C24: 2024-09-03T22:34:59 | D24: =TimeStampsV4[[#This Row],[Time Created]]-C23 -> 00:07:05
A25: 1200 | B25: dqn_model_episode_1200.pth | C25: 2024-09-03T22:44:57 | D25: =TimeStampsV4[[#This Row],[Time Created]]-C24 -> 00:09:58
A26: 1250 | B26: dqn_model_episode_1250.pth | C26: 2024-09-03T22:57:34 | D26: =TimeStampsV4[[#This Row],[Time Created]]-C25 -> 00:12:37
A27: 1300 | B27: dqn_model_episode_1300.pth | C27: 2024-09-03T23:21:36 | D27: =TimeStampsV4[[#This Row],[Time Created]]-C26 -> 00:24:02
A28: 1350 | B28: dqn_model_episode_1350.pth | C28: 2024-09-03T23:54:32 | D28: =TimeStampsV4[[#This Row],[Time Created]]-C27 -> 00:32:56
A29: 1400 | B29: dqn_model_episode_1400.pth | C29: 2024-09-04T00:58:34 | D29: =TimeStampsV4[[#This Row],[Time Created]]-C28 -> 01:04:02
A30: 1450 | B30: dqn_model_episode_1450.pth | C30: 2024-09-04T01:58:55 | D30: =TimeStampsV4[[#This Row],[Time Created]]-C29 -> 01:00:21
A31: 1500 | B31: dqn_model_episode_1500.pth | C31: 2024-09-04T03:01:13 | D31: =TimeStampsV4[[#This Row],[Time Created]]-C30 -> 01:02:18
A32: 1550 | B32: dqn_model_episode_1550.pth | C32: 2024-09-04T04:03:43 | D32: =TimeStampsV4[[#This Row],[Time Created]]-C31 -> 01:02:30
A33: 1600 | B33: dqn_model_episode_1600.pth | C33: 2024-09-04T05:06:26 | D33: =TimeStampsV4[[#This Row],[Time Created]]-C32 -> 01:02:43
A34: 1650 | B34: dqn_model_episode_1650.pth | C34: 2024-09-04T06:10:10 | D34: =TimeStampsV4[[#This Row],[Time Created]]-C33 -> 01:03:44
A35: 1700 | B35: dqn_model_episode_1700.pth | C35: 2024-09-04T07:12:34 | D35: =TimeStampsV4[[#This Row],[Time Created]]-C34 -> 01:02:24
A36: 1750 | B36: dqn_model_episode_1750.pth | C36: 2024-09-04T08:27:28 | D36: =TimeStampsV4[[#This Row],[Time Created]]-C35 -> 01:14:54
A37: 1800 | B37: dqn_model_episode_1800.pth | C37: 2024-09-04T09:45:16 | D37: =TimeStampsV4[[#This Row],[Time Created]]-C36 -> 01:17:48
A38: 1850 | B38: dqn_model_episode_1850.pth | C38: 2024-09-04T11:08:59 | D38: =TimeStampsV4[[#This Row],[Time Created]]-C37 -> 01:23:43
A39: 1900 | B39: dqn_model_episode_1900.pth | C39: 2024-09-04T12:07:35 | D39: =TimeStampsV4[[#This Row],[Time Created]]-C38 -> 00:58:36
A40: 1950 | B40: dqn_model_episode_1950.pth | C40: 2024-09-04T13:04:56 | D40: =TimeStampsV4[[#This Row],[Time Created]]-C39 -> 00:57:21
A41: 2000 | B41: dqn_model_episode_2000.pth | C41: 2024-09-04T14:14:05 | D41: =TimeStampsV4[[#This Row],[Time Created]]-C40 -> 01:09:09
A42: 2050 | B42: dqn_model_episode_2050.pth | C42: 2024-09-04T15:21:37 | D42: =TimeStampsV4[[#This Row],[Time Created]]-C41 -> 01:07:32
A43: 2100 | B43: dqn_model_episode_2100.pth | C43: 2024-09-04T16:36:39 | D43: =TimeStampsV4[[#This Row],[Time Created]]-C42 -> 01:15:02
A44: 2150 | B44: dqn_model_episode_2150.pth | C44: 2024-09-04T17:42:37 | D44: =TimeStampsV4[[#This Row],[Time Created]]-C43 -> 01:05:58
A45: 2200 | B45: dqn_model_episode_2200.pth | C45: 2024-09-04T18:58:12 | D45: =TimeStampsV4[[#This Row],[Time Created]]-C44 -> 01:15:35
A46: 2250 | B46: dqn_model_episode_2250.pth | C46: 2024-09-04T19:58:08 | D46: =TimeStampsV4[[#This Row],[Time Created]]-C45 -> 00:59:56
A47: 2300 | B47: dqn_model_episode_2300.pth | C47: 2024-09-04T21:03:00 | D47: =TimeStampsV4[[#This Row],[Time Created]]-C46 -> 01:04:52
A48: 2350 | B48: dqn_model_episode_2350.pth | C48: 2024-09-04T22:01:23 | D48: =TimeStampsV4[[#This Row],[Time Created]]-C47 -> 00:58:23
A49: 2400 | B49: dqn_model_episode_2400.pth | C49: 2024-09-04T23:00:44 | D49: =TimeStampsV4[[#This Row],[Time Created]]-C48 -> 00:59:21
A50: 2450 | B50: dqn_model_episode_2450.pth | C50: 2024-09-05T00:10:53 | D50: =TimeStampsV4[[#This Row],[Time Created]]-C49 -> 01:10:09
A51: 2500 | B51: dqn_model_episode_2500.pth | C51: 2024-09-05T01:11:11 | D51: =TimeStampsV4[[#This Row],[Time Created]]-C50 -> 01:00:18
A52: 2550 | B52: dqn_model_episode_2550.pth | C52: 2024-09-05T02:17:55 | D52: =TimeStampsV4[[#This Row],[Time Created]]-C51 -> 01:06:44
A53: 2600 | B53: dqn_model_episode_2600.pth | C53: 2024-09-05T03:24:08 | D53: =TimeStampsV4[[#This Row],[Time Created]]-C52 -> 01:06:13
A54: 2650 | B54: dqn_model_episode_2650.pth | C54: 2024-09-05T04:31:00 | D54: =TimeStampsV4[[#This Row],[Time Created]]-C53 -> 01:06:52
A55: 2700 | B55: dqn_model_episode_2700.pth | C55: 2024-09-05T05:40:38 | D55: =TimeStampsV4[[#This Row],[Time Created]]-C54 -> 01:09:38
A56: 2750 | B56: dqn_model_episode_2750.pth | C56: 2024-09-05T06:56:49 | D56: =TimeStampsV4[[#This Row],[Time Created]]-C55 -> 01:16:11
A57: 2800 | B57: dqn_model_episode_2800.pth | C57: 2024-09-05T08:08:07 | D57: =TimeStampsV4[[#This Row],[Time Created]]-C56 -> 01:11:18
A58: 2850 | B58: dqn_model_episode_2850.pth | C58: 2024-09-05T09:22:12 | D58: =TimeStampsV4[[#This Row],[Time Created]]-C57 -> 01:14:05
A59: 2900 | B59: dqn_model_episode_2900.pth | C59: 2024-09-05T10:31:11 | D59: =TimeStampsV4[[#This Row],[Time Created]]-C58 -> 01:08:59
A60: 2950 | B60: dqn_model_episode_2950.pth | C60: 2024-09-05T11:32:01 | D60: =TimeStampsV4[[#This Row],[Time Created]]-C59 -> 01:00:50
A61: 3000 | B61: dqn_model_episode_3000.pth | C61: 2024-09-05T12:51:22 | D61: =TimeStampsV4[[#This Row],[Time Created]]-C60 -> 01:19:21
A62: 3050 | B62: dqn_model_episode_3050.pth | C62: 2024-09-05T13:44:32 | D62: =TimeStampsV4[[#This Row],[Time Created]]-C61 -> 00:53:10
A63: 3100 | B63: dqn_model_episode_3100.pth | C63: 2024-09-05T14:42:55 | D63: =TimeStampsV4[[#This Row],[Time Created]]-C62 -> 00:58:23
A64: 3150 | B64: dqn_model_episode_3150.pth | C64: 2024-09-05T15:49:58 | D64: =TimeStampsV4[[#This Row],[Time Created]]-C63 -> 01:07:03
A65: 3200 | B65: dqn_model_episode_3200.pth | C65: 2024-09-05T16:57:43 | D65: =TimeStampsV4[[#This Row],[Time Created]]-C64 -> 01:07:45
A66: 3250 | B66: dqn_model_episode_3250.pth | C66: 2024-09-05T18:09:35 | D66: =TimeStampsV4[[#This Row],[Time Created]]-C65 -> 01:11:52
A67: =VALUE(MID(B67, SEARCH("episode_",B67) + 8, SEARCH(".pth", B67) - SEARCH("episode_", B67) - 8)) -> 3300 | B67: dqn_model_episode_3300.pth | C67: 2024-09-05T19:16:13 | D67: =TimeStampsV4[[#This Row],[Time Created]]-C66 -> 01:06:38
A68: 3350 | B68: dqn_model_episode_3350.pth | C68: 2024-09-05T20:24:55 | D68: =TimeStampsV4[[#This Row],[Time Created]]-C67 -> 01:08:42
A69: 3400 | B69: dqn_model_episode_3400.pth | C69: 2024-09-05T21:28:22 | D69: =TimeStampsV4[[#This Row],[Time Created]]-C68 -> 01:03:27
A70: 3450 | B70: dqn_model_episode_3450.pth | C70: 2024-09-05T22:37:21 | D70: =TimeStampsV4[[#This Row],[Time Created]]-C69 -> 01:08:59
A71: 3500 | B71: dqn_model_episode_3500.pth | C71: 2024-09-05T23:39:21 | D71: =TimeStampsV4[[#This Row],[Time Created]]-C70 -> 01:02:00
A72: 3550 | B72: dqn_model_episode_3550.pth | C72: 2024-09-06T00:41:58 | D72: =TimeStampsV4[[#This Row],[Time Created]]-C71 -> 01:02:37
A73: 3600 | B73: dqn_model_episode_3600.pth | C73: 2024-09-06T01:40:49 | D73: =TimeStampsV4[[#This Row],[Time Created]]-C72 -> 00:58:51
A74: 3650 | B74: dqn_model_episode_3650.pth | C74: 2024-09-06T02:50:16 | D74: =TimeStampsV4[[#This Row],[Time Created]]-C73 -> 01:09:27
A75: 3700 | B75: dqn_model_episode_3700.pth | C75: 2024-09-06T03:55:10 | D75: =TimeStampsV4[[#This Row],[Time Created]]-C74 -> 01:04:54
A76: 3750 | B76: dqn_model_episode_3750.pth | C76: 2024-09-06T04:58:26 | D76: =TimeStampsV4[[#This Row],[Time Created]]-C75 -> 01:03:16
A77: 3800 | B77: dqn_model_episode_3800.pth | C77: 2024-09-06T05:58:00 | D77: =TimeStampsV4[[#This Row],[Time Created]]-C76 -> 00:59:34
A78: 3850 | B78: dqn_model_episode_3850.pth | C78: 2024-09-06T07:03:17 | D78: =TimeStampsV4[[#This Row],[Time Created]]-C77 -> 01:05:17
A79: 3900 | B79: dqn_model_episode_3900.pth | C79: 2024-09-06T08:06:24 | D79: =TimeStampsV4[[#This Row],[Time Created]]-C78 -> 01:03:07
A80: 3950 | B80: dqn_model_episode_3950.pth | C80: 2024-09-06T09:15:22 | D80: =TimeStampsV4[[#This Row],[Time Created]]-C79 -> 01:08:58
A81: 4000 | B81: dqn_model_episode_4000.pth | C81: 2024-09-06T10:08:38 | D81: =TimeStampsV4[[#This Row],[Time Created]]-C80 -> 00:53:16
A82: 4050 | B82: dqn_model_episode_4050.pth | C82: 2024-09-06T11:16:38 | D82: =TimeStampsV4[[#This Row],[Time Created]]-C81 -> 01:08:00
A83: 4100 | B83: dqn_model_episode_4100.pth | C83: 2024-09-06T12:27:00 | D83: =TimeStampsV4[[#This Row],[Time Created]]-C82 -> 01:10:22
A84: 4150 | B84: dqn_model_episode_4150.pth | C84: 2024-09-06T13:27:23 | D84: =TimeStampsV4[[#This Row],[Time Created]]-C83 -> 01:00:23
A85: 4200 | B85: dqn_model_episode_4200.pth | C85: 2024-09-06T14:34:19 | D85: =TimeStampsV4[[#This Row],[Time Created]]-C84 -> 01:06:56
A86: 4250 | B86: dqn_model_episode_4250.pth | C86: 2024-09-06T15:37:25 | D86: =TimeStampsV4[[#This Row],[Time Created]]-C85 -> 01:03:06
A87: 4300 | B87: dqn_model_episode_4300.pth | C87: 2024-09-06T16:46:16 | D87: =TimeStampsV4[[#This Row],[Time Created]]-C86 -> 01:08:51
A88: 4350 | B88: dqn_model_episode_4350.pth | C88: 2024-09-06T18:09:53 | D88: =TimeStampsV4[[#This Row],[Time Created]]-C87 -> 01:23:37
A89: 4400 | B89: dqn_model_episode_4400.pth | C89: 2024-09-06T19:31:05 | D89: =TimeStampsV4[[#This Row],[Time Created]]-C88 -> 01:21:12
A90: 4450 | B90: dqn_model_episode_4450.pth | C90: 2024-09-06T20:37:27 | D90: =TimeStampsV4[[#This Row],[Time Created]]-C89 -> 01:06:22
A91: 4500 | B91: dqn_model_episode_4500.pth | C91: 2024-09-06T21:42:21 | D91: =TimeStampsV4[[#This Row],[Time Created]]-C90 -> 01:04:54
A92: 4550 | B92: dqn_model_episode_4550.pth | C92: 2024-09-06T22:49:52 | D92: =TimeStampsV4[[#This Row],[Time Created]]-C91 -> 01:07:31
A93: 4600 | B93: dqn_model_episode_4600.pth | C93: 2024-09-06T23:59:11 | D93: =TimeStampsV4[[#This Row],[Time Created]]-C92 -> 01:09:19
A94: 4650 | B94: dqn_model_episode_4650.pth | C94: 2024-09-07T01:02:11 | D94: =TimeStampsV4[[#This Row],[Time Created]]-C93 -> 01:03:00
A95: 4700 | B95: dqn_model_episode_4700.pth | C95: 2024-09-07T02:06:01 | D95: =TimeStampsV4[[#This Row],[Time Created]]-C94 -> 01:03:50
A96: 4750 | B96: dqn_model_episode_4750.pth | C96: 2024-09-07T03:15:56 | D96: =TimeStampsV4[[#This Row],[Time Created]]-C95 -> 01:09:55
A97: 4800 | B97: dqn_model_episode_4800.pth | C97: 2024-09-07T04:24:28 | D97: =TimeStampsV4[[#This Row],[Time Created]]-C96 -> 01:08:32
A98: 4850 | B98: dqn_model_episode_4850.pth | C98: 2024-09-07T05:36:50 | D98: =TimeStampsV4[[#This Row],[Time Created]]-C97 -> 01:12:22
A99: 4900 | B99: dqn_model_episode_4900.pth | C99: 2024-09-07T06:42:33 | D99: =TimeStampsV4[[#This Row],[Time Created]]-C98 -> 01:05:43
A100: 4950 | B100: dqn_model_episode_4950.pth | C100: 2024-09-07T07:47:23 | D100: =TimeStampsV4[[#This Row],[Time Created]]-C99 -> 01:04:50
A101: 5000 | B101: dqn_model_episode_5000.pth | C101: 2024-09-07T09:02:56 | D101: =TimeStampsV4[[#This Row],[Time Created]]-C100 -> 01:15:33
A102: 5050 | B102: dqn_model_episode_5050.pth | C102: 2024-09-07T10:10:15 | D102: =TimeStampsV4[[#This Row],[Time Created]]-C101 -> 01:07:19
A103: 5100 | B103: dqn_model_episode_5100.pth | C103: 2024-09-07T11:17:16 | D103: =TimeStampsV4[[#This Row],[Time Created]]-C102 -> 01:07:01
A104: 5150 | B104: dqn_model_episode_5150.pth | C104: 2024-09-07T12:29:40 | D104: =TimeStampsV4[[#This Row],[Time Created]]-C103 -> 01:12:24
A105: 5200 | B105: dqn_model_episode_5200.pth | C105: 2024-09-07T13:39:32 | D105: =TimeStampsV4[[#This Row],[Time Created]]-C104 -> 01:09:52
A106: 5250 | B106: dqn_model_episode_5250.pth | C106: 2024-09-07T14:46:01 | D106: =TimeStampsV4[[#This Row],[Time Created]]-C105 -> 01:06:29
A107: 5300 | B107: dqn_model_episode_5300.pth | C107: 2024-09-07T15:48:44 | D107: =TimeStampsV4[[#This Row],[Time Created]]-C106 -> 01:02:43
A108: 5350 | B108: dqn_model_episode_5350.pth | C108: 2024-09-07T16:50:21 | D108: =TimeStampsV4[[#This Row],[Time Created]]-C107 -> 01:01:37
A109: 5400 | B109: dqn_model_episode_5400.pth | C109: 2024-09-07T17:57:35 | D109: =TimeStampsV4[[#This Row],[Time Created]]-C108 -> 01:07:14
A110: 5450 | B110: dqn_model_episode_5450.pth | C110: 2024-09-07T19:11:59 | D110: =TimeStampsV4[[#This Row],[Time Created]]-C109 -> 01:14:24
A111: 5500 | B111: dqn_model_episode_5500.pth | C111: 2024-09-07T20:19:13 | D111: =TimeStampsV4[[#This Row],[Time Created]]-C110 -> 01:07:14
A112: 5550 | B112: dqn_model_episode_5550.pth | C112: 2024-09-07T21:25:08 | D112: =TimeStampsV4[[#This Row],[Time Created]]-C111 -> 01:05:55
A113: 5600 | B113: dqn_model_episode_5600.pth | C113: 2024-09-07T22:35:40 | D113: =TimeStampsV4[[#This Row],[Time Created]]-C112 -> 01:10:32
A114: 5650 | B114: dqn_model_episode_5650.pth | C114: 2024-09-07T23:37:34 | D114: =TimeStampsV4[[#This Row],[Time Created]]-C113 -> 01:01:54
A115: 5700 | B115: dqn_model_episode_5700.pth | C115: 2024-09-08T00:44:24 | D115: =TimeStampsV4[[#This Row],[Time Created]]-C114 -> 01:06:50
A116: 5750 | B116: dqn_model_episode_5750.pth | C116: 2024-09-08T01:38:44 | D116: =TimeStampsV4[[#This Row],[Time Created]]-C115 -> 00:54:20
A117: 5800 | B117: dqn_model_episode_5800.pth | C117: 2024-09-08T02:41:46 | D117: =TimeStampsV4[[#This Row],[Time Created]]-C116 -> 01:03:02
A118: 5850 | B118: dqn_model_episode_5850.pth | C118: 2024-09-08T03:56:22 | D118: =TimeStampsV4[[#This Row],[Time Created]]-C117 -> 01:14:36
A119: 5900 | B119: dqn_model_episode_5900.pth | C119: 2024-09-08T04:55:41 | D119: =TimeStampsV4[[#This Row],[Time Created]]-C118 -> 00:59:19
A120: 5950 | B120: dqn_model_episode_5950.pth | C120: 2024-09-08T05:58:40 | D120: =TimeStampsV4[[#This Row],[Time Created]]-C119 -> 01:02:59
A121: 6000 | B121: dqn_model_episode_6000.pth | C121: 2024-09-08T07:02:06 | D121: =TimeStampsV4[[#This Row],[Time Created]]-C120 -> 01:03:26
A122: 6050 | B122: dqn_model_episode_6050.pth | C122: 2024-09-08T08:11:30 | D122: =TimeStampsV4[[#This Row],[Time Created]]-C121 -> 01:09:24
A123: 6100 | B123: dqn_model_episode_6100.pth | C123: 2024-09-08T09:15:42 | D123: =TimeStampsV4[[#This Row],[Time Created]]-C122 -> 01:04:12
A124: 6150 | B124: dqn_model_episode_6150.pth | C124: 2024-09-08T10:16:32 | D124: =TimeStampsV4[[#This Row],[Time Created]]-C123 -> 01:00:50
A125: 6200 | B125: dqn_model_episode_6200.pth | C125: 2024-09-08T11:24:41 | D125: =TimeStampsV4[[#This Row],[Time Created]]-C124 -> 01:08:09
A126: 6250 | B126: dqn_model_episode_6250.pth | C126: 2024-09-08T12:30:20 | D126: =TimeStampsV4[[#This Row],[Time Created]]-C125 -> 01:05:39
A127: 6300 | B127: dqn_model_episode_6300.pth | C127: 2024-09-08T13:43:15 | D127: =TimeStampsV4[[#This Row],[Time Created]]-C126 -> 01:12:55
A128: 6350 | B128: dqn_model_episode_6350.pth | C128: 2024-09-08T14:44:37 | D128: =TimeStampsV4[[#This Row],[Time Created]]-C127 -> 01:01:22
A129: 6400 | B129: dqn_model_episode_6400.pth | C129: 2024-09-08T15:40:51 | D129: =TimeStampsV4[[#This Row],[Time Created]]-C128 -> 00:56:14
A130: 6450 | B130: dqn_model_episode_6450.pth | C130: 2024-09-08T16:45:42 | D130: =TimeStampsV4[[#This Row],[Time Created]]-C129 -> 01:04:51
A131: =VALUE(MID(B131, SEARCH("episode_",B131) + 8, SEARCH(".pth", B131) - SEARCH("episode_", B131) - 8)) -> 6500 | B131: dqn_model_episode_6500.pth | C131: 2024-09-08T17:49:27 | D131: =TimeStampsV4[[#This Row],[Time Created]]-C130 -> 01:03:45
A132: 6550 | B132: dqn_model_episode_6550.pth | C132: 2024-09-08T18:50:45 | D132: =TimeStampsV4[[#This Row],[Time Created]]-C131 -> 01:01:18
A133: 6600 | B133: dqn_model_episode_6600.pth | C133: 2024-09-08T19:51:33 | D133: =TimeStampsV4[[#This Row],[Time Created]]-C132 -> 01:00:48
A134: 6650 | B134: dqn_model_episode_6650.pth | C134: 2024-09-08T20:56:26 | D134: =TimeStampsV4[[#This Row],[Time Created]]-C133 -> 01:04:53
A135: 6700 | B135: dqn_model_episode_6700.pth | C135: 2024-09-08T22:08:46 | D135: =TimeStampsV4[[#This Row],[Time Created]]-C134 -> 01:12:20
A136: 6750 | B136: dqn_model_episode_6750.pth | C136: 2024-09-08T23:19:15 | D136: =TimeStampsV4[[#This Row],[Time Created]]-C135 -> 01:10:29
A137: 6800 | B137: dqn_model_episode_6800.pth | C137: 2024-09-09T00:28:16 | D137: =TimeStampsV4[[#This Row],[Time Created]]-C136 -> 01:09:01
A138: 6850 | B138: dqn_model_episode_6850.pth | C138: 2024-09-09T01:26:39 | D138: =TimeStampsV4[[#This Row],[Time Created]]-C137 -> 00:58:23
A139: 6900 | B139: dqn_model_episode_6900.pth | C139: 2024-09-09T02:32:07 | D139: =TimeStampsV4[[#This Row],[Time Created]]-C138 -> 01:05:28
A140: 6950 | B140: dqn_model_episode_6950.pth | C140: 2024-09-09T03:49:20 | D140: =TimeStampsV4[[#This Row],[Time Created]]-C139 -> 01:17:13
A141: 7000 | B141: dqn_model_episode_7000.pth | C141: 2024-09-09T04:59:33 | D141: =TimeStampsV4[[#This Row],[Time Created]]-C140 -> 01:10:13
A142: 7050 | B142: dqn_model_episode_7050.pth | C142: 2024-09-09T06:05:43 | D142: =TimeStampsV4[[#This Row],[Time Created]]-C141 -> 01:06:10
A143: 7100 | B143: dqn_model_episode_7100.pth | C143: 2024-09-09T07:08:52 | D143: =TimeStampsV4[[#This Row],[Time Created]]-C142 -> 01:03:09
A144: 7150 | B144: dqn_model_episode_7150.pth | C144: 2024-09-09T08:15:57 | D144: =TimeStampsV4[[#This Row],[Time Created]]-C143 -> 01:07:05
A145: 7200 | B145: dqn_model_episode_7200.pth | C145: 2024-09-09T09:14:49 | D145: =TimeStampsV4[[#This Row],[Time Created]]-C144 -> 00:58:52
A146: 7250 | B146: dqn_model_episode_7250.pth | C146: 2024-09-09T10:24:36 | D146: =TimeStampsV4[[#This Row],[Time Created]]-C145 -> 01:09:47
A147: 7300 | B147: dqn_model_episode_7300.pth | C147: 2024-09-09T11:30:22 | D147: =TimeStampsV4[[#This Row],[Time Created]]-C146 -> 01:05:46
A148: 7350 | B148: dqn_model_episode_7350.pth | C148: 2024-09-09T12:30:09 | D148: =TimeStampsV4[[#This Row],[Time Created]]-C147 -> 00:59:47
A149: 7400 | B149: dqn_model_episode_7400.pth | C149: 2024-09-09T13:34:45 | D149: =TimeStampsV4[[#This Row],[Time Created]]-C148 -> 01:04:36
A150: 7450 | B150: dqn_model_episode_7450.pth | C150: 2024-09-09T14:29:07 | D150: =TimeStampsV4[[#This Row],[Time Created]]-C149 -> 00:54:22
A151: 7500 | B151: dqn_model_episode_7500.pth | C151: 2024-09-09T15:43:53 | D151: =TimeStampsV4[[#This Row],[Time Created]]-C150 -> 01:14:46
A152: 7550 | B152: dqn_model_episode_7550.pth | C152: 2024-09-09T16:51:23 | D152: =TimeStampsV4[[#This Row],[Time Created]]-C151 -> 01:07:30
A153: 7600 | B153: dqn_model_episode_7600.pth | C153: 2024-09-09T17:59:13 | D153: =TimeStampsV4[[#This Row],[Time Created]]-C152 -> 01:07:50
A154: 7650 | B154: dqn_model_episode_7650.pth | C154: 2024-09-09T19:10:16 | D154: =TimeStampsV4[[#This Row],[Time Created]]-C153 -> 01:11:03
A155: 7700 | B155: dqn_model_episode_7700.pth | C155: 2024-09-09T20:25:49 | D155: =TimeStampsV4[[#This Row],[Time Created]]-C154 -> 01:15:33
A156: 7750 | B156: dqn_model_episode_7750.pth | C156: 2024-09-09T21:43:51 | D156: =TimeStampsV4[[#This Row],[Time Created]]-C155 -> 01:18:02
A157: 7800 | B157: dqn_model_episode_7800.pth | C157: 2024-09-09T22:44:59 | D157: =TimeStampsV4[[#This Row],[Time Created]]-C156 -> 01:01:08
A158: 7850 | B158: dqn_model_episode_7850.pth | C158: 2024-09-09T23:45:25 | D158: =TimeStampsV4[[#This Row],[Time Created]]-C157 -> 01:00:26
A159: 7900 | B159: dqn_model_episode_7900.pth | C159: 2024-09-10T00:48:37 | D159: =TimeStampsV4[[#This Row],[Time Created]]-C158 -> 01:03:12
A160: 7950 | B160: dqn_model_episode_7950.pth | C160: 2024-09-10T01:53:45 | D160: =TimeStampsV4[[#This Row],[Time Created]]-C159 -> 01:05:08
A161: 8000 | B161: dqn_model_episode_8000.pth | C161: 2024-09-10T03:06:16 | D161: =TimeStampsV4[[#This Row],[Time Created]]-C160 -> 01:12:31
A162: 8050 | B162: dqn_model_episode_8050.pth | C162: 2024-09-10T04:17:31 | D162: =TimeStampsV4[[#This Row],[Time Created]]-C161 -> 01:11:15
A163: 8100 | B163: dqn_model_episode_8100.pth | C163: 2024-09-10T05:27:19 | D163: =TimeStampsV4[[#This Row],[Time Created]]-C162 -> 01:09:48
A164: 8150 | B164: dqn_model_episode_8150.pth | C164: 2024-09-10T06:35:58 | D164: =TimeStampsV4[[#This Row],[Time Created]]-C163 -> 01:08:39
A165: 8200 | B165: dqn_model_episode_8200.pth | C165: 2024-09-10T07:38:00 | D165: =TimeStampsV4[[#This Row],[Time Created]]-C164 -> 01:02:02
A166: 8250 | B166: dqn_model_episode_8250.pth | C166: 2024-09-10T08:36:16 | D166: =TimeStampsV4[[#This Row],[Time Created]]-C165 -> 00:58:16
A167: 8300 | B167: dqn_model_episode_8300.pth | C167: 2024-09-10T09:41:31 | D167: =TimeStampsV4[[#This Row],[Time Created]]-C166 -> 01:05:15
A168: 8350 | B168: dqn_model_episode_8350.pth | C168: 2024-09-10T10:49:37 | D168: =TimeStampsV4[[#This Row],[Time Created]]-C167 -> 01:08:06
A169: 8400 | B169: dqn_model_episode_8400.pth | C169: 2024-09-10T12:06:19 | D169: =TimeStampsV4[[#This Row],[Time Created]]-C168 -> 01:16:42
A170: 8450 | B170: dqn_model_episode_8450.pth | C170: 2024-09-10T13:11:17 | D170: =TimeStampsV4[[#This Row],[Time Created]]-C169 -> 01:04:58
A171: 8500 | B171: dqn_model_episode_8500.pth | C171: 2024-09-10T14:16:24 | D171: =TimeStampsV4[[#This Row],[Time Created]]-C170 -> 01:05:07
A172: 8550 | B172: dqn_model_episode_8550.pth | C172: 2024-09-10T15:14:04 | D172: =TimeStampsV4[[#This Row],[Time Created]]-C171 -> 00:57:40
A173: 8600 | B173: dqn_model_episode_8600.pth | C173: 2024-09-10T16:24:18 | D173: =TimeStampsV4[[#This Row],[Time Created]]-C172 -> 01:10:14
A174: 8650 | B174: dqn_model_episode_8650.pth | C174: 2024-09-10T17:33:35 | D174: =TimeStampsV4[[#This Row],[Time Created]]-C173 -> 01:09:17
A175: 8700 | B175: dqn_model_episode_8700.pth | C175: 2024-09-10T18:41:07 | D175: =TimeStampsV4[[#This Row],[Time Created]]-C174 -> 01:07:32
A176: 8750 | B176: dqn_model_episode_8750.pth | C176: 2024-09-10T19:53:20 | D176: =TimeStampsV4[[#This Row],[Time Created]]-C175 -> 01:12:13
A177: 8800 | B177: dqn_model_episode_8800.pth | C177: 2024-09-10T20:57:50 | D177: =TimeStampsV4[[#This Row],[Time Created]]-C176 -> 01:04:30
A178: 8850 | B178: dqn_model_episode_8850.pth | C178: 2024-09-10T22:04:08 | D178: =TimeStampsV4[[#This Row],[Time Created]]-C177 -> 01:06:18
A179: 8900 | B179: dqn_model_episode_8900.pth | C179: 2024-09-10T23:01:22 | D179: =TimeStampsV4[[#This Row],[Time Created]]-C178 -> 00:57:14
A180: 8950 | B180: dqn_model_episode_8950.pth | C180: 2024-09-11T00:04:58 | D180: =TimeStampsV4[[#This Row],[Time Created]]-C179 -> 01:03:36
A181: 9000 | B181: dqn_model_episode_9000.pth | C181: 2024-09-11T01:06:55 | D181: =TimeStampsV4[[#This Row],[Time Created]]-C180 -> 01:01:57
A182: 9050 | B182: dqn_model_episode_9050.pth | C182: 2024-09-11T02:08:59 | D182: =TimeStampsV4[[#This Row],[Time Created]]-C181 -> 01:02:04
A183: 9100 | B183: dqn_model_episode_9100.pth | C183: 2024-09-11T03:05:09 | D183: =TimeStampsV4[[#This Row],[Time Created]]-C182 -> 00:56:10
A184: 9150 | B184: dqn_model_episode_9150.pth | C184: 2024-09-11T04:06:41 | D184: =TimeStampsV4[[#This Row],[Time Created]]-C183 -> 01:01:32
A185: 9200 | B185: dqn_model_episode_9200.pth | C185: 2024-09-11T05:10:49 | D185: =TimeStampsV4[[#This Row],[Time Created]]-C184 -> 01:04:08
A186: 9250 | B186: dqn_model_episode_9250.pth | C186: 2024-09-11T06:09:54 | D186: =TimeStampsV4[[#This Row],[Time Created]]-C185 -> 00:59:05
A187: 9300 | B187: dqn_model_episode_9300.pth | C187: 2024-09-11T07:20:34 | D187: =TimeStampsV4[[#This Row],[Time Created]]-C186 -> 01:10:40
A188: 9350 | B188: dqn_model_episode_9350.pth | C188: 2024-09-11T08:24:35 | D188: =TimeStampsV4[[#This Row],[Time Created]]-C187 -> 01:04:01
A189: 9400 | B189: dqn_model_episode_9400.pth | C189: 2024-09-11T09:23:52 | D189: =TimeStampsV4[[#This Row],[Time Created]]-C188 -> 00:59:17
A190: 9450 | B190: dqn_model_episode_9450.pth | C190: 2024-09-11T10:28:13 | D190: =TimeStampsV4[[#This Row],[Time Created]]-C189 -> 01:04:21
A191: 9500 | B191: dqn_model_episode_9500.pth | C191: 2024-09-11T11:40:47 | D191: =TimeStampsV4[[#This Row],[Time Created]]-C190 -> 01:12:34
A192: 9550 | B192: dqn_model_episode_9550.pth | C192: 2024-09-11T12:48:50 | D192: =TimeStampsV4[[#This Row],[Time Created]]-C191 -> 01:08:03
A193: 9600 | B193: dqn_model_episode_9600.pth | C193: 2024-09-11T13:48:27 | D193: =TimeStampsV4[[#This Row],[Time Created]]-C192 -> 00:59:37
A194: 9650 | B194: dqn_model_episode_9650.pth | C194: 2024-09-11T14:50:47 | D194: =TimeStampsV4[[#This Row],[Time Created]]-C193 -> 01:02:20
A195: =VALUE(MID(B195, SEARCH("episode_",B195) + 8, SEARCH(".pth", B195) - SEARCH("episode_", B195) - 8)) -> 9700 | B195: dqn_model_episode_9700.pth | C195: 2024-09-11T16:06:15 | D195: =TimeStampsV4[[#This Row],[Time Created]]-C194 -> 01:15:28
A196: 9750 | B196: dqn_model_episode_9750.pth | C196: 2024-09-11T17:24:29 | D196: =TimeStampsV4[[#This Row],[Time Created]]-C195 -> 01:18:14
A197: 9800 | B197: dqn_model_episode_9800.pth | C197: 2024-09-11T18:30:26 | D197: =TimeStampsV4[[#This Row],[Time Created]]-C196 -> 01:05:57
A198: 9850 | B198: dqn_model_episode_9850.pth | C198: 2024-09-11T19:46:55 | D198: =TimeStampsV4[[#This Row],[Time Created]]-C197 -> 01:16:29
A199: 9900 | B199: dqn_model_episode_9900.pth | C199: 2024-09-11T20:53:28 | D199: =TimeStampsV4[[#This Row],[Time Created]]-C198 -> 01:06:33
A200: 9950 | B200: dqn_model_episode_9950.pth | C200: 2024-09-11T22:00:22 | D200: =TimeStampsV4[[#This Row],[Time Created]]-C199 -> 01:06:54
... 81 more rows

Sheet Training Time Stamps V3
A1: Episode Number | B1: File Name | C1: Time Created | D1: Time to Train 50 Episodes
A2: =VALUE(MID(B2, SEARCH("episode_",B2) + 8, SEARCH(".pth", B2) - SEARCH("episode_", B2) - 8)) -> 50 | B2: dqn_model_episode_50.pth | C2: 2024-09-03T12:57:29
A3: 100 | B3: dqn_model_episode_100.pth | C3: 2024-09-03T13:02:49 | D3: =TimeStampsV3[[#This Row],[Time Created]]-C2 -> 00:05:20
A4: 150 | B4: dqn_model_episode_150.pth | C4: 2024-09-03T13:07:11 | D4: =TimeStampsV3[[#This Row],[Time Created]]-C3 -> 00:04:22
A5: 200 | B5: dqn_model_episode_200.pth | C5: 2024-09-03T13:13:24 | D5: =TimeStampsV3[[#This Row],[Time Created]]-C4 -> 00:06:13
A6: 250 | B6: dqn_model_episode_250.pth | C6: 2024-09-03T13:18:23 | D6: =TimeStampsV3[[#This Row],[Time Created]]-C5 -> 00:04:59
A7: 300 | B7: dqn_model_episode_300.pth | C7: 2024-09-03T13:24:11 | D7: =TimeStampsV3[[#This Row],[Time Created]]-C6 -> 00:05:48
A8: 350 | B8: dqn_model_episode_350.pth | C8: 2024-09-03T13:29:20 | D8: =TimeStampsV3[[#This Row],[Time Created]]-C7 -> 00:05:09
A9: 400 | B9: dqn_model_episode_400.pth | C9: 2024-09-03T13:32:50 | D9: =TimeStampsV3[[#This Row],[Time Created]]-C8 -> 00:03:30
A10: 450 | B10: dqn_model_episode_450.pth | C10: 2024-09-03T13:38:23 | D10: =TimeStampsV3[[#This Row],[Time Created]]-C9 -> 00:05:33
A11: 500 | B11: dqn_model_episode_500.pth | C11: 2024-09-03T13:42:19 | D11: =TimeStampsV3[[#This Row],[Time Created]]-C10 -> 00:03:56
A12: 550 | B12: dqn_model_episode_550.pth | C12: 2024-09-03T13:46:36 | D12: =TimeStampsV3[[#This Row],[Time Created]]-C11 -> 00:04:17
C13: =MAX(TimeStampsV3[Time Created])-MIN(TimeStampsV3[Time Created]) -> 00:49:07 | D13: =AVERAGE(D3:D12) -> 00:04:54.700

Sheet Training Time Stamps V2
A1: Episode Number | B1: File Name | C1: Time Created | D1: Time to Train 50 Episodes
A2: =VALUE(MID(B2, SEARCH("episode_",B2) + 8, SEARCH(".pth", B2) - SEARCH("episode_", B2) - 8)) -> 50 | B2: dqn_model_episode_50.pth | C2: 2024-09-02T12:47:50
A3: 100 | B3: dqn_model_episode_100.pth | C3: 2024-09-02T12:53:58 | D3: =TimeStampsV2[[#This Row],[Time Created]]-C2 -> 00:06:08
A4: 150 | B4: dqn_model_episode_150.pth | C4: 2024-09-02T12:59:30 | D4: =TimeStampsV2[[#This Row],[Time Created]]-C3 -> 00:05:32
A5: 200 | B5: dqn_model_episode_200.pth | C5: 2024-09-02T13:08:05 | D5: =TimeStampsV2[[#This Row],[Time Created]]-C4 -> 00:08:35
A6: 250 | B6: dqn_model_episode_250.pth | C6: 2024-09-02T13:12:45 | D6: =TimeStampsV2[[#This Row],[Time Created]]-C5 -> 00:04:40
A7: 300 | B7: dqn_model_episode_300.pth | C7: 2024-09-02T13:18:11 | D7: =TimeStampsV2[[#This Row],[Time Created]]-C6 -> 00:05:26
A8: 350 | B8: dqn_model_episode_350.pth | C8: 2024-09-02T13:24:05 | D8: =TimeStampsV2[[#This Row],[Time Created]]-C7 -> 00:05:54
A9: 400 | B9: dqn_model_episode_400.pth | C9: 2024-09-02T13:28:19 | D9: =TimeStampsV2[[#This Row],[Time Created]]-C8 -> 00:04:14
A10: 450 | B10: dqn_model_episode_450.pth | C10: 2024-09-02T13:40:51 | D10: =TimeStampsV2[[#This Row],[Time Created]]-C9 -> 00:12:32
A11: 500 | B11: dqn_model_episode_500.pth | C11: 2024-09-02T14:14:52 | D11: =TimeStampsV2[[#This Row],[Time Created]]-C10 -> 00:34:01
A12: 550 | B12: dqn_model_episode_550.pth | C12: 2024-09-02T14:44:29 | D12: =TimeStampsV2[[#This Row],[Time Created]]-C11 -> 00:29:37
A13: 600 | B13: dqn_model_episode_600.pth | C13: 2024-09-02T15:13:49 | D13: =TimeStampsV2[[#This Row],[Time Created]]-C12 -> 00:29:20
A14: 650 | B14: dqn_model_episode_650.pth | C14: 2024-09-02T15:47:05 | D14: =TimeStampsV2[[#This Row],[Time Created]]-C13 -> 00:33:16
A15: 700 | B15: dqn_model_episode_700.pth | C15: 2024-09-02T16:17:23 | D15: =TimeStampsV2[[#This Row],[Time Created]]-C14 -> 00:30:18
A16: 750 | B16: dqn_model_episode_750.pth | C16: 2024-09-02T16:46:57 | D16: =TimeStampsV2[[#This Row],[Time Created]]-C15 -> 00:29:34
A17: 800 | B17: dqn_model_episode_800.pth | C17: 2024-09-02T17:12:40 | D17: =TimeStampsV2[[#This Row],[Time Created]]-C16 -> 00:25:43
A18: 850 | B18: dqn_model_episode_850.pth | C18: 2024-09-02T17:39:46 | D18: =TimeStampsV2[[#This Row],[Time Created]]-C17 -> 00:27:06
A19: 900 | B19: dqn_model_episode_900.pth | C19: 2024-09-02T18:10:51 | D19: =TimeStampsV2[[#This Row],[Time Created]]-C18 -> 00:31:05
A20: 950 | B20: dqn_model_episode_950.pth | C20: 2024-09-02T18:40:55 | D20: =TimeStampsV2[[#This Row],[Time Created]]-C19 -> 00:30:04
A21: 1000 | B21: dqn_model_episode_1000.pth | C21: 2024-09-02T19:08:46 | D21: =TimeStampsV2[[#This Row],[Time Created]]-C20 -> 00:27:51
A22: 1050 | B22: dqn_model_episode_1050.pth | C22: 2024-09-02T19:38:04 | D22: =TimeStampsV2[[#This Row],[Time Created]]-C21 -> 00:29:18
A23: 1100 | B23: dqn_model_episode_1100.pth | C23: 2024-09-02T20:07:16 | D23: =TimeStampsV2[[#This Row],[Time Created]]-C22 -> 00:29:12
A24: 1150 | B24: dqn_model_episode_1150.pth | C24: 2024-09-02T20:36:27 | D24: =TimeStampsV2[[#This Row],[Time Created]]-C23 -> 00:29:11
A25: 1200 | B25: dqn_model_episode_1200.pth | C25: 2024-09-02T21:14:42 | D25: =TimeStampsV2[[#This Row],[Time Created]]-C24 -> 00:38:15
A26: 1250 | B26: dqn_model_episode_1250.pth | C26: 2024-09-02T21:51:31 | D26: =TimeStampsV2[[#This Row],[Time Created]]-C25 -> 00:36:49
A27: 1300 | B27: dqn_model_episode_1300.pth | C27: 2024-09-02T22:20:47 | D27: =TimeStampsV2[[#This Row],[Time Created]]-C26 -> 00:29:16
A28: 1350 | B28: dqn_model_episode_1350.pth | C28: 2024-09-02T22:49:05 | D28: =TimeStampsV2[[#This Row],[Time Created]]-C27 -> 00:28:18
A29: 1400 | B29: dqn_model_episode_1400.pth | C29: 2024-09-02T23:19:32 | D29: =TimeStampsV2[[#This Row],[Time Created]]-C28 -> 00:30:27
A30: 1450 | B30: dqn_model_episode_1450.pth | C30: 2024-09-02T23:43:15 | D30: =TimeStampsV2[[#This Row],[Time Created]]-C29 -> 00:23:43
A31: 1500 | B31: dqn_model_episode_1500.pth | C31: 2024-09-03T00:08:43 | D31: =TimeStampsV2[[#This Row],[Time Created]]-C30 -> 00:25:28
A32: 1550 | B32: dqn_model_episode_1550.pth | C32: 2024-09-03T00:40:03 | D32: =TimeStampsV2[[#This Row],[Time Created]]-C31 -> 00:31:20
A33: 1600 | B33: dqn_model_episode_1600.pth | C33: 2024-09-03T01:12:55 | D33: =TimeStampsV2[[#This Row],[Time Created]]-C32 -> 00:32:52
A34: 1650 | B34: dqn_model_episode_1650.pth | C34: 2024-09-03T01:47:02 | D34: =TimeStampsV2[[#This Row],[Time Created]]-C33 -> 00:34:07
A35: 1700 | B35: dqn_model_episode_1700.pth | C35: 2024-09-03T02:18:19 | D35: =TimeStampsV2[[#This Row],[Time Created]]-C34 -> 00:31:17
A36: 1750 | B36: dqn_model_episode_1750.pth | C36: 2024-09-03T02:45:57 | D36: =TimeStampsV2[[#This Row],[Time Created]]-C35 -> 00:27:38
A37: 1800 | B37: dqn_model_episode_1800.pth | C37: 2024-09-03T03:18:32 | D37: =TimeStampsV2[[#This Row],[Time Created]]-C36 -> 00:32:35
A38: 1850 | B38: dqn_model_episode_1850.pth | C38: 2024-09-03T03:45:11 | D38: =TimeStampsV2[[#This Row],[Time Created]]-C37 -> 00:26:39
A39: 1900 | B39: dqn_model_episode_1900.pth | C39: 2024-09-03T04:15:11 | D39: =TimeStampsV2[[#This Row],[Time Created]]-C38 -> 00:30:00
A40: 1950 | B40: dqn_model_episode_1950.pth | C40: 2024-09-03T04:50:08 | D40: =TimeStampsV2[[#This Row],[Time Created]]-C39 -> 00:34:57
A41: 2000 | B41: dqn_model_episode_2000.pth | C41: 2024-09-03T05:26:19 | D41: =TimeStampsV2[[#This Row],[Time Created]]-C40 -> 00:36:11
A42: 2050 | B42: dqn_model_episode_2050.pth | C42: 2024-09-03T05:54:43 | D42: =TimeStampsV2[[#This Row],[Time Created]]-C41 -> 00:28:24
A43: 2100 | B43: dqn_model_episode_2100.pth | C43: 2024-09-03T06:26:17 | D43: =TimeStampsV2[[#This Row],[Time Created]]-C42 -> 00:31:34
A44: 2150 | B44: dqn_model_episode_2150.pth | C44: 2024-09-03T07:00:56 | D44: =TimeStampsV2[[#This Row],[Time Created]]-C43 -> 00:34:39
A45: 2200 | B45: dqn_model_episode_2200.pth | C45: 2024-09-03T07:23:23 | D45: =TimeStampsV2[[#This Row],[Time Created]]-C44 -> 00:22:27
A46: 2250 | B46: dqn_model_episode_2250.pth | C46: 2024-09-03T07:54:43 | D46: =TimeStampsV2[[#This Row],[Time Created]]-C45 -> 00:31:20
A47: 2300 | B47: dqn_model_episode_2300.pth | C47: 2024-09-03T08:26:52 | D47: =TimeStampsV2[[#This Row],[Time Created]]-C46 -> 00:32:09
A48: 2350 | B48: dqn_model_episode_2350.pth | C48: 2024-09-03T08:58:10 | D48: =TimeStampsV2[[#This Row],[Time Created]]-C47 -> 00:31:18
C49: =MAX(TimeStampsV2[Time Created])-MIN(TimeStampsV2[Time Created]) -> 20:10:20 | D49: =SUBTOTAL(101,TimeStampsV2[Time to Train 50 Episodes]) -> 00:26:18.696

Sheet Training Time Stamps V1
A1: Episode Number | B1: File Name | C1: Time Created | D1: 06:08.0
A2: =VALUE(MID(B2, SEARCH("episode_",B2) + 8, SEARCH(".pth", B2) - SEARCH("episode_", B2) - 8)) -> 50 | B2: dqn_model_episode_50.pth | C2: 2024-09-01T17:26:10
A3: 100 | B3: dqn_model_episode_100.pth | C3: 2024-09-01T17:31:41 | D3: =TimeStampsV1[[#This Row],[Time Created]]-C2 -> 00:05:31
A4: 150 | B4: dqn_model_episode_150.pth | C4: 2024-09-01T17:36:46 | D4: =TimeStampsV1[[#This Row],[Time Created]]-C3 -> 00:05:05
A5: 200 | B5: dqn_model_episode_200.pth | C5: 2024-09-01T17:42:43 | D5: =TimeStampsV1[[#This Row],[Time Created]]-C4 -> 00:05:57
A6: 250 | B6: dqn_model_episode_250.pth | C6: 2024-09-01T17:46:33 | D6: =TimeStampsV1[[#This Row],[Time Created]]-C5 -> 00:03:50
A7: 300 | B7: dqn_model_episode_300.pth | C7: 2024-09-01T17:48:37 | D7: =TimeStampsV1[[#This Row],[Time Created]]-C6 -> 00:02:04
A8: 350 | B8: dqn_model_episode_350.pth | C8: 2024-09-01T17:51:51 | D8: =TimeStampsV1[[#This Row],[Time Created]]-C7 -> 00:03:14
A9: 400 | B9: dqn_model_episode_400.pth | C9: 2024-09-01T17:54:59 | D9: =TimeStampsV1[[#This Row],[Time Created]]-C8 -> 00:03:08
A10: 450 | B10: dqn_model_episode_450.pth | C10: 2024-09-01T17:59:29 | D10: =TimeStampsV1[[#This Row],[Time Created]]-C9 -> 00:04:30
A11: 500 | B11: dqn_model_episode_500.pth | C11: 2024-09-01T18:01:40 | D11: =TimeStampsV1[[#This Row],[Time Created]]-C10 -> 00:02:11
A12: 550 | B12: dqn_model_episode_550.pth | C12: 2024-09-01T18:05:00 | D12: =TimeStampsV1[[#This Row],[Time Created]]-C11 -> 00:03:20
A13: 600 | B13: dqn_model_episode_600.pth | C13: 2024-09-01T18:10:14 | D13: =TimeStampsV1[[#This Row],[Time Created]]-C12 -> 00:05:14
A14: 650 | B14: dqn_model_episode_650.pth | C14: 2024-09-01T18:12:33 | D14: =TimeStampsV1[[#This Row],[Time Created]]-C13 -> 00:02:19
A15: 700 | B15: dqn_model_episode_700.pth | C15: 2024-09-01T18:37:21 | D15: =TimeStampsV1[[#This Row],[Time Created]]-C14 -> 00:24:48
A16: 750 | B16: dqn_model_episode_750.pth | C16: 2024-09-01T19:14:40 | D16: =TimeStampsV1[[#This Row],[Time Created]]-C15 -> 00:37:19
A17: 800 | B17: dqn_model_episode_800.pth | C17: 2024-09-01T19:49:19 | D17: =TimeStampsV1[[#This Row],[Time Created]]-C16 -> 00:34:39
A18: 850 | B18: dqn_model_episode_850.pth | C18: 2024-09-01T20:28:42 | D18: =TimeStampsV1[[#This Row],[Time Created]]-C17 -> 00:39:23
A19: 900 | B19: dqn_model_episode_900.pth | C19: 2024-09-01T21:03:41 | D19: =TimeStampsV1[[#This Row],[Time Created]]-C18 -> 00:34:59
A20: 950 | B20: dqn_model_episode_950.pth | C20: 2024-09-01T21:43:52 | D20: =TimeStampsV1[[#This Row],[Time Created]]-C19 -> 00:40:11
A21: 1000 | B21: dqn_model_episode_1000.pth | C21: 2024-09-01T22:23:16 | D21: =TimeStampsV1[[#This Row],[Time Created]]-C20 -> 00:39:24
A22: 1050 | B22: dqn_model_episode_1050.pth | C22: 2024-09-01T22:56:59 | D22: =TimeStampsV1[[#This Row],[Time Created]]-C21 -> 00:33:43
A23: 1100 | B23: dqn_model_episode_1100.pth | C23: 2024-09-01T23:30:22 | D23: =TimeStampsV1[[#This Row],[Time Created]]-C22 -> 00:33:23
A24: 1150 | B24: dqn_model_episode_1150.pth | C24: 2024-09-02T00:11:19 | D24: =TimeStampsV1[[#This Row],[Time Created]]-C23 -> 00:40:57
A25: 1200 | B25: dqn_model_episode_1200.pth | C25: 2024-09-02T00:48:39 | D25: =TimeStampsV1[[#This Row],[Time Created]]-C24 -> 00:37:20
A26: 1250 | B26: dqn_model_episode_1250.pth | C26: 2024-09-02T01:24:56 | D26: =TimeStampsV1[[#This Row],[Time Created]]-C25 -> 00:36:17
A27: 1300 | B27: dqn_model_episode_1300.pth | C27: 2024-09-02T01:57:41 | D27: =TimeStampsV1[[#This Row],[Time Created]]-C26 -> 00:32:45
A28: 1350 | B28: dqn_model_episode_1350.pth | C28: 2024-09-02T02:36:57 | D28: =TimeStampsV1[[#This Row],[Time Created]]-C27 -> 00:39:16
A29: 1400 | B29: dqn_model_episode_1400.pth | C29: 2024-09-02T03:22:50 | D29: =TimeStampsV1[[#This Row],[Time Created]]-C28 -> 00:45:53
A30: 1450 | B30: dqn_model_episode_1450.pth | C30: 2024-09-02T04:03:11 | D30: =TimeStampsV1[[#This Row],[Time Created]]-C29 -> 00:40:21
A31: 1500 | B31: dqn_model_episode_1500.pth | C31: 2024-09-02T04:39:38 | D31: =TimeStampsV1[[#This Row],[Time Created]]-C30 -> 00:36:27
A32: 1550 | B32: dqn_model_episode_1550.pth | C32: 2024-09-02T05:18:53 | D32: =TimeStampsV1[[#This Row],[Time Created]]-C31 -> 00:39:15
A33: 1600 | B33: dqn_model_episode_1600.pth | C33: 2024-09-02T05:54:25 | D33: =TimeStampsV1[[#This Row],[Time Created]]-C32 -> 00:35:32
A34: 1650 | B34: dqn_model_episode_1650.pth | C34: 2024-09-02T06:37:27 | D34: =TimeStampsV1[[#This Row],[Time Created]]-C33 -> 00:43:02
A35: 1700 | B35: dqn_model_episode_1700.pth | C35: 2024-09-02T07:23:25 | D35: =TimeStampsV1[[#This Row],[Time Created]]-C34 -> 00:45:58
A36: 1750 | B36: dqn_model_episode_1750.pth | C36: 2024-09-02T08:07:48 | D36: =TimeStampsV1[[#This Row],[Time Created]]-C35 -> 00:44:23
A37: 1800 | B37: dqn_model_episode_1800.pth | C37: 2024-09-02T08:49:37 | D37: =TimeStampsV1[[#This Row],[Time Created]]-C36 -> 00:41:49
A38: 1850 | B38: dqn_model_episode_1850.pth | C38: 2024-09-02T09:28:12 | D38: =TimeStampsV1[[#This Row],[Time Created]]-C37 -> 00:38:35
A39: 1900 | B39: dqn_model_episode_1900.pth | C39: 2024-09-02T10:05:12 | D39: =TimeStampsV1[[#This Row],[Time Created]]-C38 -> 00:37:00
A40: 1950 | B40: dqn_model_episode_1950.pth | C40: 2024-09-02T10:42:19 | D40: =TimeStampsV1[[#This Row],[Time Created]]-C39 -> 00:37:07
A41: 2000 | B41: dqn_model_episode_2000.pth | C41: 2024-09-02T11:20:55 | D41: =TimeStampsV1[[#This Row],[Time Created]]-C40 -> 00:38:36
A42: 2050 | B42: dqn_model_episode_2050.pth | C42: 2024-09-02T12:07:45 | D42: =TimeStampsV1[[#This Row],[Time Created]]-C41 -> 00:46:50
C43: =MAX(TimeStampsV1[Time Created])-MIN(TimeStampsV1[Time Created]) -> 18:41:35 | D43: =SUBTOTAL(101,TimeStampsV1[06:08.0]) -> 00:28:02.375
